Body Name,Body,Service Division Label,Service Division Code,Organisational Unit,Expenditure Category,Expenditure Code,CIPFA detailed expediture type,CIPFA detailed expediture code,Narrative,Date,Transaction number,Net Amount,Capital and Revenue,Supplier Name,Supplier ID
Chorley Borough Council,http://statistics.data.gov.uk/id/local-authority/30UE,Corporate Management,1008,Customer & Digital,Other Contributions,40145,Grants and Subscriptions,5031,ADDRESS REDACTED,15/12/2016,117792,"2,581.20",Revenue,NAME REDACTED,73770
Chorley Borough Council,http://statistics.data.gov.uk/id/local-authority/30UE,Parking Services,1066,Business Development & Growth,External Contractor,40198,Miscellaneous Expenses,5034,Carry out lining works to Hollinshead Street Car Park to create 53 Parking Bays on Friday 2nd December 2016 as per quote,15/12/2016,117666,798.45,Revenue,A1 Streamline Road Markings LTD,21544
Chorley Borough Council,http://statistics.data.gov.uk/id/local-authority/30UE,Democratic Represent and  Mgnt,1007,Policy & Governance,Exhibitions & Special Events,40158,Miscellaneous Expenses,5034,"Wrapped kids presents. All from 3.50 range, and a variety for each age group. Boys: Ages 1 - 15; 2 - 26; 3 - 49; 4 - 60; 5 - 47; ",07/12/2016,117466,"3,500.00",Revenue,Abbey Distributors,67669
Chorley Borough Council,http://statistics.data.gov.uk/id/local-authority/30UE,Democratic Represent and  Mgnt,1007,Policy & Governance,Other Fees,40212,Miscellaneous Expenses,5034,Bar fees for November 2016,07/12/2016,117433,260.00,Revenue,Ace Bars Ltd,54338
Chorley Borough Council,http://statistics.data.gov.uk/id/local-authority/30UE,Democratic Represent and  Mgnt,1007,Policy & Governance,Miscellaneous Expenses,40200,Miscellaneous Expenses,5034,"Outdoor Christmas tree lights for tree near courtyard. LED lights, extension leads and power supply equipment. Without VAT",09/12/2016,117557,276.20,Revenue,Active Audio Visual,21379
Chorley Borough Council,http://statistics.data.gov.uk/id/local-authority/30UE,Democratic Represent and  Mgnt,1007,Policy & Governance,Miscellaneous Expenses,40200,Miscellaneous Expenses,5034,"Equipment hire for Astley Hall event - Astley Illuminated. Fees include cost of all hired lights, power supplies, generators",09/12/2016,117560,"4,195.00",Revenue,Active Audio Visual,21379
Chorley Borough Council,http://statistics.data.gov.uk/id/local-authority/30UE,Business Support,1095,Business Development & Growth,Miscellaneous Expenses,40200,Miscellaneous Expenses,5034,For technical support for the November Choose Chorley Business Network,09/12/2016,117563,350.00,Revenue,Active Audio Visual,21379
Chorley Borough Council,http://statistics.data.gov.uk/id/local-authority/30UE,Central Support Services,1009,Early Intervention,Children's Activities,40188,Miscellaneous Expenses,5034,Hire of facilities for Friday night Doorstep sports club at Clayton Green Sports Centre in November,07/12/2016,117403,280.00,Revenue,Active Nation UK Ltd,17144
Chorley Borough Council,http://statistics.data.gov.uk/id/local-authority/30UE,Corporate Management,1008,Customer & Digital,Other Contributions,40145,Grants and Subscriptions,5031,pear tree house,02/12/2016,117412,"4,706.00",Revenue,NAME REDACTED,73976
Chorley Borough Council,http://statistics.data.gov.uk/id/local-authority/30UE,Central Support Services,1009,Customer & Digital,Miscellaneous Expenses,40200,Miscellaneous Expenses,5034,"Neighbourhood project. Underpass handrail, Astley Village",07/12/2016,117381,"1,240.87",Revenue,Adlington Dry Stone Walling,63372
Chorley Borough Council,http://statistics.data.gov.uk/id/local-authority/30UE,Central Support Services,1009,Customer & Digital,Miscellaneous Expenses,40200,Miscellaneous Expenses,5034,materials,07/12/2016,117381,"5,704.40",Revenue,Adlington Dry Stone Walling,63372
Chorley Borough Council,http://statistics.data.gov.uk/id/local-authority/30UE,Unapportionable Central OHeads,1009,Business Development & Growth,General Repairs - Reactive,20004,Repairs Maintenance & Alts,5005,Blanket order for REACTIVE works for 2015/6.,21/12/2016,116915,941.80,Revenue,ADT Fire & Security,16645
Chorley Borough Council,http://statistics.data.gov.uk/id/local-authority/30UE,Corporate Management,1008,Customer & Digital,Other Contributions,40145,Grants and Subscriptions,5031,ADDRESS REDACTED,02/12/2016,117413,"4,706.00",Revenue,NAME REDACTED,73773
Chorley Borough Council,http://statistics.data.gov.uk/id/local-authority/30UE,Unapportionable Central OHeads,1009,Customer & Digital,Bank Charges,40151,Miscellaneous Expenses,5034,Bank Charges,07/12/2016,117523,"1,820.35",Revenue,Allpay Net Ltd,17242
Chorley Borough Council,http://statistics.data.gov.uk/id/local-authority/30UE,Business Support,1095,Business Development & Growth,Grants To Other Organisations,40127,Grants and Subscriptions,5031,subsidy 5,02/12/2016,117347,623.00,Revenue,NAME REDACTED,76176
Chorley Borough Council,http://statistics.data.gov.uk/id/local-authority/30UE,Central Support Services,1009,Customer & Digital,Computer Equipment-Maintenance,40105,Communication and Computing,5028,Managed infrastructure contract - December 2016,21/12/2016,117780,"2,000.00",Revenue,ANS Group,22502
Chorley Borough Council,http://statistics.data.gov.uk/id/local-authority/30UE,Tourism,1039,Policy & Governance,Promotional Expenses,40159,Miscellaneous Expenses,5034,credited previously,21/12/2016,117697,"1,000.00",Revenue,Archant Life,18930
Chorley Borough Council,http://statistics.data.gov.uk/id/local-authority/30UE,Service Management & Support,1009,Customer & Digital,Protective Clothing,40040,"Clothing, Uniforms and Laundry",5025,"3M Peltor G2031A Forestry Combination Unit SNR28 Adjustable visor, hearing protectors.  Product Code = 258000.",14/12/2016,116826,273.10,Revenue,Arco Limited,17458
Chorley Borough Council,http://statistics.data.gov.uk/id/local-authority/30UE,Service Management & Support,1009,Customer & Digital,Protective Clothing,40040,"Clothing, Uniforms and Laundry",5025,Uneek UC502 Classic Hooded Sweatshirt.  Colour = Red c/w Chorley Council White Logo embroidered on front left breast.  ,14/12/2016,117297,21.72,Revenue,Arco Limited,17458
Chorley Borough Council,http://statistics.data.gov.uk/id/local-authority/30UE,Service Management & Support,1009,Customer & Digital,Protective Clothing,40040,"Clothing, Uniforms and Laundry",5025,Uneek UC502 Classic Hooded Sweatshirt.  Colour = Red c/w Chorley Council White Logo embroidered on front left breast.  ,14/12/2016,117297,108.60,Revenue,Arco Limited,17458
Chorley Borough Council,http://statistics.data.gov.uk/id/local-authority/30UE,Service Management & Support,1009,Customer & Digital,Protective Clothing,40040,"Clothing, Uniforms and Laundry",5025,Uneek UC502 Classic Hooded Sweatshirt.  Colour = Red c/w Chorley Council White Logo embroidered on front left breast. ,14/12/2016,117297,144.80,Revenue,Arco Limited,17458
Chorley Borough Council,http://statistics.data.gov.uk/id/local-authority/30UE,Service Management & Support,1009,Customer & Digital,Protective Clothing,40040,"Clothing, Uniforms and Laundry",5025,Uneek UC502 Classic Hooded Sweatshirt.  Colour = Red c/w Chorley Council White Logo embroidered on front left breast.  ,14/12/2016,117297,72.40,Revenue,Arco Limited,17458
Chorley Borough Council,http://statistics.data.gov.uk/id/local-authority/30UE,Service Management & Support,1009,Customer & Digital,Protective Clothing,40040,"Clothing, Uniforms and Laundry",5025,Uneek UC502 Classic Hooded Sweatshirt.  Colour = Red c/w Chorley Council White Logo embroidered on front left breast.  ,14/12/2016,117297,21.72,Revenue,Arco Limited,17458
Chorley Borough Council,http://statistics.data.gov.uk/id/local-authority/30UE,Service Management & Support,1009,Customer & Digital,Protective Clothing,40040,"Clothing, Uniforms and Laundry",5025,Uneek UC502 Classic Hooded Sweatshirt.  Colour = Red c/w Chorley Council White Logo embroidered on front left breast.  ,14/12/2016,117297,21.72,Revenue,Arco Limited,17458
Chorley Borough Council,http://statistics.data.gov.uk/id/local-authority/30UE,Service Management & Support,1009,Customer & Digital,Protective Clothing,40040,"Clothing, Uniforms and Laundry",5025,simple embroidery,14/12/2016,117297,108.00,Revenue,Arco Limited,17458
Chorley Borough Council,http://statistics.data.gov.uk/id/local-authority/30UE,Service Management & Support,1009,Customer & Digital,Supplies-Grounds Maintenance,40025,"Equipment, Furniture & Materia",5023,Supply and install a metal stile and other works at Ellerbeck to prevent motorbike access.,07/12/2016,117471,450.00,Revenue,Ark Welding Ltd,18154
Chorley Borough Council,http://statistics.data.gov.uk/id/local-authority/30UE,Service Management & Support,1009,Customer & Digital,Supplies-Grounds Maintenance,40025,"Equipment, Furniture & Materia",5023,Install a metal stile to prevent motorbike access at Common bank as agreed.,07/12/2016,117472,450.00,Revenue,Ark Welding Ltd,18154
Chorley Borough Council,http://statistics.data.gov.uk/id/local-authority/30UE,Service Management & Support,1009,Customer & Digital,Supplies-Grounds Maintenance,40025,"Equipment, Furniture & Materia",5023,Supply railway sleepers as on invoice number 017075,22/12/2016,117933,315.00,Revenue,Ark Welding Ltd,18154
Chorley Borough Council,http://statistics.data.gov.uk/id/local-authority/30UE,Public Transport,1067,Customer & Digital,Bus Shelters -Maintenance,20062,Grounds Maintenance Costs,5013,Supply and install new windows to bus shelter at Balshaw Lane as on invoice number 017064,22/12/2016,117940,355.00,Revenue,Ark Welding Ltd,18154
Chorley Borough Council,http://statistics.data.gov.uk/id/local-authority/30UE,Service Management & Support,1009,Customer & Digital,External Contractor,40198,Miscellaneous Expenses,5034,Refurbish rope bridge as on invoice number 017066,22/12/2016,117941,250.00,Revenue,Ark Welding Ltd,18154
Chorley Borough Council,http://statistics.data.gov.uk/id/local-authority/30UE,Service Management & Support,1009,Customer & Digital,Supplies - Workshop,40246,"Equipment, Furniture & Materia",5023,Supply pivot pins for Ransomes Highway and Parkway as on invoice number 017062,22/12/2016,117943,460.00,Revenue,Ark Welding Ltd,18154
Chorley Borough Council,http://statistics.data.gov.uk/id/local-authority/30UE,Business Support,1095,Business Development & Growth,Grants To Other Organisations,40127,Grants and Subscriptions,5031,grant,02/12/2016,117258,"4,647.48",Revenue,NAME REDACTED,76086
Chorley Borough Council,http://statistics.data.gov.uk/id/local-authority/30UE,Business Support,1095,Business Development & Growth,Grants To Other Organisations,40127,Grants and Subscriptions,5031,rates,02/12/2016,117258,"2,180.09",Revenue,NAME REDACTED,76086
Chorley Borough Council,http://statistics.data.gov.uk/id/local-authority/30UE,Central Support Services,1009,Policy & Governance,Car Leasing Payment,14100,Direct Employee Expenses,5001,NAME REDACTED,21/12/2016,117889,"2,417.64",Revenue,Arnold Clark Finance Ltd,20685
Chorley Borough Council,http://statistics.data.gov.uk/id/local-authority/30UE,Central Support Services,1009,Policy & Governance,Car Leasing Payment,14100,Direct Employee Expenses,5001,Car Lease,21/12/2016,117889,195.39,Revenue,Arnold Clark Finance Ltd,20685
Chorley Borough Council,http://statistics.data.gov.uk/id/local-authority/30UE,Control Accounts,Control,Policy & Governance,Manual Control Account,1,Balance Sheet,Balance,Balance Sheet,21/12/2016,117889,-195.39,Revenue,Arnold Clark Finance Ltd,20685
Chorley Borough Council,http://statistics.data.gov.uk/id/local-authority/30UE,Business Support,1095,Policy & Governance,Miscellaneous Expenses,40200,Miscellaneous Expenses,5034,"work set out in AHA e-mail (28 Sept 2016) - Access Geometry (Fixed Fee) - 1975 - Operational Testing (Fixed fee) - 3275 ",23/12/2016,117706,"6,076.50",Revenue,Ashley Helme Associates,76317
Chorley Borough Council,http://statistics.data.gov.uk/id/local-authority/30UE,Service Management & Support,1009,Customer & Digital,Registered Plant - Maintenance,40247,"Equipment, Furniture & Materia",5023,Supply items as on advise note number 185081 already supplied,14/12/2016,117752,702.76,Revenue,Balmers Garden Machinery,17075
Chorley Borough Council,http://statistics.data.gov.uk/id/local-authority/30UE,Corporate Management,1008,Policy & Governance,Bank Charges,40151,Miscellaneous Expenses,5034,Bank Charges,20/12/2016,117630,586.25,Revenue,Barclaycard Merchant Services,61601
Chorley Borough Council,http://statistics.data.gov.uk/id/local-authority/30UE,Corporate Management,1008,Policy & Governance,Bank Charges,40151,Miscellaneous Expenses,5034,Bank Charges,20/12/2016,117631,451.06,Revenue,Barclaycard Merchant Services,61601
Chorley Borough Council,http://statistics.data.gov.uk/id/local-authority/30UE,Unapportionable Central OHeads,1009,Customer & Digital,Consultants` Fees,40077,Services,5027,"Support as agreed with Customer, Transactional and ICT services.",15/12/2016,117812,"1,650.00",Revenue,REDACTED PERSONAL DATA,22238
Chorley Borough Council,http://statistics.data.gov.uk/id/local-authority/30UE,Business Support,1095,Business Development & Growth,Miscellaneous Expenses,40200,Miscellaneous Expenses,5034,For procurement support on Digital Office Park project (outside of original remit) @ 875 per day including expenses.,21/12/2016,117714,"14,648.10",Revenue,Brian Farrington Ltd,16822
Chorley Borough Council,http://statistics.data.gov.uk/id/local-authority/30UE,Democratic Represent and  Mgnt,1007,Policy & Governance,Miscellaneous Expenses,40200,Miscellaneous Expenses,5034,"Shop sales from British Wildlife Photography Awards exhibition: 15 x books at 12.00        180 34 x calendars at 5.00   ",07/12/2016,117512,394.25,Revenue,British Wildlife Photography Awards(BWPA),76375
Chorley Borough Council,http://statistics.data.gov.uk/id/local-authority/30UE,Business Support,1095,Business Development & Growth,Grants To Other Organisations,40127,Grants and Subscriptions,5031,grant,21/12/2016,117862,"7,000.00",Revenue,Buckshaw Bunnies Childcare Ltd (Gelston Manor Day,66660
Chorley Borough Council,http://statistics.data.gov.uk/id/local-authority/30UE,Business Support,1095,Business Development & Growth,Grants To Other Organisations,40127,Grants and Subscriptions,5031,Grant,02/12/2016,117377,"5,589.56",Revenue,C & K Jewellery Ltd,76361
Chorley Borough Council,http://statistics.data.gov.uk/id/local-authority/30UE,Service Management & Support,1009,Customer & Digital,Supplies-Grounds Maintenance,40025,"Equipment, Furniture & Materia",5023,SUPPLY & FIT 600mm NON RETURN FLAP AT TOWN LANE WHITTLE LE WOODS,14/12/2016,117768,750.00,Revenue,C J Lyon,16579
Chorley Borough Council,http://statistics.data.gov.uk/id/local-authority/30UE,Service Management & Support,1009,Customer & Digital,Tools & Equipment - Purchase,40003,"Equipment, Furniture & Materia",5023,1 x Refuse as per Further completion frame work under PRO5 Framework Agreement No 324 to be delivered to Bengal St depot,21/12/2016,116569,"45,946.79",Revenue,C P Davidson & Sons Ltd,21093
Chorley Borough Council,http://statistics.data.gov.uk/id/local-authority/30UE,Service Management & Support,1009,Customer & Digital,Tools & Equipment - Purchase,40003,"Equipment, Furniture & Materia",5023,1 x Refuse as per Further completion frame work under PRO5 Framework Agreement No 324 to be delivered to Bengal St depot,21/12/2016,116669,"91,893.59",Revenue,C P Davidson & Sons Ltd,21093
Chorley Borough Council,http://statistics.data.gov.uk/id/local-authority/30UE,Service Management & Support,1009,Customer & Digital,Tools & Equipment - Purchase,40003,"Equipment, Furniture & Materia",5023,Tools & Equipment,21/12/2016,116669,257.55,Revenue,C P Davidson & Sons Ltd,21093
Chorley Borough Council,http://statistics.data.gov.uk/id/local-authority/30UE,Service Management & Support,1009,Customer & Digital,Vehicle Maintenance,30045,Direct Transport Costs,5016,Supply and fit new N/S/R spring on RV14DVB as per invoice number W54082,07/12/2016,117424,631.25,Revenue,C P Davidson & Sons Ltd,21093
Chorley Borough Council,http://statistics.data.gov.uk/id/local-authority/30UE,Service Management & Support,1009,Customer & Digital,Vehicle Maintenance,30045,Direct Transport Costs,5016,Carryout pre MOT inspection and complete repairs and take for annual test on DK56 JWO as requested,07/12/2016,117451,"1,869.48",Revenue,C P Davidson & Sons Ltd,21093
Chorley Borough Council,http://statistics.data.gov.uk/id/local-authority/30UE,Unapportionable Central OHeads,1009,Customer & Digital,Emergency Call Out System,40096,Communication and Computing,5028,out of hours,15/12/2016,117663,603.44,Revenue,CallCare Ltd,20257
Chorley Borough Council,http://statistics.data.gov.uk/id/local-authority/30UE,Economic Development,1096,Business Development & Growth,Miscellaneous Expenses,40200,Miscellaneous Expenses,5034,For catering for November 2016 Choose Chorley network,02/12/2016,117302,348.00,Revenue,Camerons Restaurant Ltd,53731
Chorley Borough Council,http://statistics.data.gov.uk/id/local-authority/30UE,Housing Benefit Administration,1077,Customer & Digital,Computer Software-Additional,40102,Communication and Computing,5028,INVOICE 1 of 2 For work completed by Capita on changes to our benefit processing system necessary to exchange information,21/12/2016,117327,"7,909.50",Revenue,Capita Business Services Ltd,17151
Chorley Borough Council,http://statistics.data.gov.uk/id/local-authority/30UE,Business Support,1095,Business Development & Growth,Grants To Other Organisations,40127,Grants and Subscriptions,5031,sib grant,21/12/2016,117414,250.00,Revenue,NAME REDACTED,76406
Chorley Borough Council,http://statistics.data.gov.uk/id/local-authority/30UE,Business Support,1095,Business Development & Growth,Grants To Other Organisations,40127,Grants and Subscriptions,5031,sib grant,21/12/2016,117415,250.00,Revenue,NAME REDACTED,76405
Chorley Borough Council,http://statistics.data.gov.uk/id/local-authority/30UE,Corporate Management,1008,Customer & Digital,Other Contributions,40145,Grants and Subscriptions,5031,ADDRESS REDACTED,21/12/2016,117930,"5,000.00",Revenue,NAME REDACTED,73732
Chorley Borough Council,http://statistics.data.gov.uk/id/local-authority/30UE,Corporate Management,1008,Early Intervention,Taxi Testing & Vehicle Safety Report,40234,Services,5027,mot,14/12/2016,117636,"1,426.10",Revenue,Chorley Autocare Ltd,17110
Chorley Borough Council,http://statistics.data.gov.uk/id/local-authority/30UE,Corporate Management,1008,Early Intervention,Taxi Testing & Vehicle Safety Report,40234,Services,5027,taxi test,14/12/2016,117636,222.30,Revenue,Chorley Autocare Ltd,17110
Chorley Borough Council,http://statistics.data.gov.uk/id/local-authority/30UE,Democratic Represent and  Mgnt,1007,Chief Executive,Refreshments,40036,Catering,5024,mulled wine,02/12/2016,117388,15.96,Revenue,Chorley BC Petty Cash,16301
Chorley Borough Council,http://statistics.data.gov.uk/id/local-authority/30UE,Unapportionable Central OHeads,1009,Chief Executive,Postages,40082,Communication and Computing,5028,postage,02/12/2016,117388,1.50,Revenue,Chorley BC Petty Cash,16301
Chorley Borough Council,http://statistics.data.gov.uk/id/local-authority/30UE,Democratic Represent and  Mgnt,1007,Chief Executive,Use Of Transport - Mayoral Car,30015,Transport Recharges,5017,carwash,02/12/2016,117388,6.00,Revenue,Chorley BC Petty Cash,16301
Chorley Borough Council,http://statistics.data.gov.uk/id/local-authority/30UE,Unapportionable Central OHeads,1009,Chief Executive,Cleaning Materials,40019,"Equipment, Furniture & Materia",5023,cleaner,02/12/2016,117388,1.48,Revenue,Chorley BC Petty Cash,16301
Chorley Borough Council,http://statistics.data.gov.uk/id/local-authority/30UE,Economic Development,1096,Chief Executive,Miscellaneous Expenses,40200,Miscellaneous Expenses,5034,diaries,02/12/2016,117388,6.17,Revenue,Chorley BC Petty Cash,16301
Chorley Borough Council,http://statistics.data.gov.uk/id/local-authority/30UE,Unapportionable Central OHeads,1009,Chief Executive,Tools & Equipment - Purchase,40003,"Equipment, Furniture & Materia",5023,duct tape,02/12/2016,117388,3.99,Revenue,Chorley BC Petty Cash,16301
Chorley Borough Council,http://statistics.data.gov.uk/id/local-authority/30UE,Democratic Represent and  Mgnt,1007,Chief Executive,Refreshments,40036,Catering,5024,mulled wine,02/12/2016,117388,17.16,Revenue,Chorley BC Petty Cash,16301
Chorley Borough Council,http://statistics.data.gov.uk/id/local-authority/30UE,Unapportionable Central OHeads,1009,Chief Executive,Refreshments,40036,Catering,5024,milk,02/12/2016,117388,2.00,Revenue,Chorley BC Petty Cash,16301
Chorley Borough Council,http://statistics.data.gov.uk/id/local-authority/30UE,Democratic Represent and  Mgnt,1007,Chief Executive,Tools & Equipment - Purchase,40003,"Equipment, Furniture & Materia",5023,cable ties,02/12/2016,117388,1.30,Revenue,Chorley BC Petty Cash,16301
Chorley Borough Council,http://statistics.data.gov.uk/id/local-authority/30UE,Democratic Represent and  Mgnt,1007,Chief Executive,Mayoral Hospitality,40123,Expenses,5030,drinks,02/12/2016,117388,20.00,Revenue,Chorley BC Petty Cash,16301
Chorley Borough Council,http://statistics.data.gov.uk/id/local-authority/30UE,Democratic Represent and  Mgnt,1007,Chief Executive,Exhibitions & Special Events,40158,Miscellaneous Expenses,5034,poly filler,02/12/2016,117388,7.46,Revenue,Chorley BC Petty Cash,16301
Chorley Borough Council,http://statistics.data.gov.uk/id/local-authority/30UE,Democratic Represent and  Mgnt,1007,Chief Executive,Miscellaneous Expenses,40200,Miscellaneous Expenses,5034,batteries,02/12/2016,117388,3.32,Revenue,Chorley BC Petty Cash,16301
Chorley Borough Council,http://statistics.data.gov.uk/id/local-authority/30UE,Democratic Represent and  Mgnt,1007,Chief Executive,Miscellaneous Expenses,40200,Miscellaneous Expenses,5034,pulses,02/12/2016,117388,10.32,Revenue,Chorley BC Petty Cash,16301
Chorley Borough Council,http://statistics.data.gov.uk/id/local-authority/30UE,Democratic Represent and  Mgnt,1007,Chief Executive,Miscellaneous Expenses,40200,Miscellaneous Expenses,5034,flowers,02/12/2016,117388,1.67,Revenue,Chorley BC Petty Cash,16301
Chorley Borough Council,http://statistics.data.gov.uk/id/local-authority/30UE,Democratic Represent and  Mgnt,1007,Chief Executive,Tools & Equipment - Purchase,40003,"Equipment, Furniture & Materia",5023,decs,02/12/2016,117388,16.63,Revenue,Chorley BC Petty Cash,16301
Chorley Borough Council,http://statistics.data.gov.uk/id/local-authority/30UE,Democratic Represent and  Mgnt,1007,Chief Executive,Tools & Equipment - Purchase,40003,"Equipment, Furniture & Materia",5023,decs,02/12/2016,117388,16.67,Revenue,Chorley BC Petty Cash,16301
Chorley Borough Council,http://statistics.data.gov.uk/id/local-authority/30UE,Democratic Represent and  Mgnt,1007,Chief Executive,Tools & Equipment - Purchase,40003,"Equipment, Furniture & Materia",5023,decs,02/12/2016,117388,16.67,Revenue,Chorley BC Petty Cash,16301
Chorley Borough Council,http://statistics.data.gov.uk/id/local-authority/30UE,Democratic Represent and  Mgnt,1007,Chief Executive,Tools & Equipment - Purchase,40003,"Equipment, Furniture & Materia",5023,decs,02/12/2016,117388,3.46,Revenue,Chorley BC Petty Cash,16301
Chorley Borough Council,http://statistics.data.gov.uk/id/local-authority/30UE,Unapportionable Central OHeads,1009,Chief Executive,Exhibitions & Special Events,40158,Miscellaneous Expenses,5034,food,02/12/2016,117388,9.00,Revenue,Chorley BC Petty Cash,16301
Chorley Borough Council,http://statistics.data.gov.uk/id/local-authority/30UE,Unapportionable Central OHeads,1009,Chief Executive,Exhibitions & Special Events,40158,Miscellaneous Expenses,5034,food,02/12/2016,117388,18.50,Revenue,Chorley BC Petty Cash,16301
Chorley Borough Council,http://statistics.data.gov.uk/id/local-authority/30UE,Unapportionable Central OHeads,1009,Chief Executive,Exhibitions & Special Events,40158,Miscellaneous Expenses,5034,cable ties,02/12/2016,117388,2.60,Revenue,Chorley BC Petty Cash,16301
Chorley Borough Council,http://statistics.data.gov.uk/id/local-authority/30UE,Corporate Management,1008,Chief Executive,Legal Fees,40171,Miscellaneous Expenses,5034,solicitors,02/12/2016,117388,15.85,Revenue,Chorley BC Petty Cash,16301
Chorley Borough Council,http://statistics.data.gov.uk/id/local-authority/30UE,Unapportionable Central OHeads,1009,Chief Executive,Refreshments,40036,Catering,5024,biscuits,02/12/2016,117388,3.00,Revenue,Chorley BC Petty Cash,16301
Chorley Borough Council,http://statistics.data.gov.uk/id/local-authority/30UE,Central Support Services,1009,Chief Executive,Tools & Equipment - Purchase,40003,"Equipment, Furniture & Materia",5023,cleaner,02/12/2016,117388,7.42,Revenue,Chorley BC Petty Cash,16301
Chorley Borough Council,http://statistics.data.gov.uk/id/local-authority/30UE,Unapportionable Central OHeads,1009,Chief Executive,Exhibitions & Special Events,40158,Miscellaneous Expenses,5034,receipt book,02/12/2016,117388,4.57,Revenue,Chorley BC Petty Cash,16301
Chorley Borough Council,http://statistics.data.gov.uk/id/local-authority/30UE,Unapportionable Central OHeads,1009,Chief Executive,Tools & Equipment - Purchase,40003,"Equipment, Furniture & Materia",5023,lanterns,02/12/2016,117388,9.98,Revenue,Chorley BC Petty Cash,16301
Chorley Borough Council,http://statistics.data.gov.uk/id/local-authority/30UE,Unapportionable Central OHeads,1009,Chief Executive,Tools & Equipment - Purchase,40003,"Equipment, Furniture & Materia",5023,tape,02/12/2016,117388,4.41,Revenue,Chorley BC Petty Cash,16301
Chorley Borough Council,http://statistics.data.gov.uk/id/local-authority/30UE,Corporate Management,1008,Chief Executive,Miscellaneous Expenses,40200,Miscellaneous Expenses,5034,refund,02/12/2016,117388,31.50,Revenue,Chorley BC Petty Cash,16301
Chorley Borough Council,http://statistics.data.gov.uk/id/local-authority/30UE,Democratic Represent and  Mgnt,1007,Chief Executive,Mayoral Hospitality,40123,Expenses,5030,mulled wine,02/12/2016,117388,17.50,Revenue,Chorley BC Petty Cash,16301
Chorley Borough Council,http://statistics.data.gov.uk/id/local-authority/30UE,Democratic Represent and  Mgnt,1007,Chief Executive,Mayoral Hospitality,40123,Expenses,5030,mulled wine,02/12/2016,117388,17.50,Revenue,Chorley BC Petty Cash,16301
Chorley Borough Council,http://statistics.data.gov.uk/id/local-authority/30UE,Democratic Represent and  Mgnt,1007,Chief Executive,Mayoral Hospitality,40123,Expenses,5030,juice,02/12/2016,117388,19.34,Revenue,Chorley BC Petty Cash,16301
Chorley Borough Council,http://statistics.data.gov.uk/id/local-authority/30UE,Democratic Represent and  Mgnt,1007,Chief Executive,Mayoral Hospitality,40123,Expenses,5030,chocolate,02/12/2016,117388,5.25,Revenue,Chorley BC Petty Cash,16301
Chorley Borough Council,http://statistics.data.gov.uk/id/local-authority/30UE,Democratic Represent and  Mgnt,1007,Chief Executive,Miscellaneous Expenses,40200,Miscellaneous Expenses,5034,flowers,02/12/2016,117388,14.17,Revenue,Chorley BC Petty Cash,16301
Chorley Borough Council,http://statistics.data.gov.uk/id/local-authority/30UE,Central Support Services,1009,Chief Executive,Administration Costs Recovered,60101,Customer & Client Receipts,5064,refund,02/12/2016,117388,10.00,Revenue,Chorley BC Petty Cash,16301
Chorley Borough Council,http://statistics.data.gov.uk/id/local-authority/30UE,Unapportionable Central OHeads,1009,Chief Executive,Stationery,40050,"Printing, Stationery & General",5026,stickers,02/12/2016,117388,1.98,Revenue,Chorley BC Petty Cash,16301
Chorley Borough Council,http://statistics.data.gov.uk/id/local-authority/30UE,Business Support,1095,Business Development & Growth,Grants To Other Organisations,40127,Grants and Subscriptions,5031,subsidy 4,21/12/2016,117864,"1,609.50",Revenue,Chorley Vets,75543
Chorley Borough Council,http://statistics.data.gov.uk/id/local-authority/30UE,Unapportionable Central OHeads,1009,Business Development & Growth,Planned Maintenance,20006,Repairs Maintenance & Alts,5005,Blanket order for PPM contracts for alarms at Astley.,21/12/2016,117052,660.00,Revenue,Chubb Electronic Sec Sys Ltd,16228
Chorley Borough Council,http://statistics.data.gov.uk/id/local-authority/30UE,Unapportionable Central OHeads,1009,Business Development & Growth,Planned Maintenance,20006,Repairs Maintenance & Alts,5005,Blanket order for PPM contracts for alarms at Astley.,21/12/2016,117130,385.88,Revenue,Chubb Electronic Sec Sys Ltd,16228
Chorley Borough Council,http://statistics.data.gov.uk/id/local-authority/30UE,Unapportionable Central OHeads,1009,Policy & Governance,Training Course Fees,17010,Indirect Employee Expenses,5002,Capital Valuations Avoiding the Pitfalls 2016 Keeping to date with the latest in local authority asset 17th November Manchester,21/12/2016,117589,375.00,Revenue,CIPFA Business Ltd,16247
Chorley Borough Council,http://statistics.data.gov.uk/id/local-authority/30UE,Unapportionable Central OHeads,1009,Business Development & Growth,General Repairs - Reactive,20004,Repairs Maintenance & Alts,5005,2nd Blanket order for Reactive works for 2016.,21/12/2016,117251,371.27,Revenue,Classic Lifts Limited,20897
Chorley Borough Council,http://statistics.data.gov.uk/id/local-authority/30UE,Unapportionable Central OHeads,1009,Business Development & Growth,General Repairs - Reactive,20004,Repairs Maintenance & Alts,5005,Blanket reactive repairs from October 2016.,21/12/2016,117167,938.83,Revenue,Corlett Electrical Eng Co Ltd,16271
Chorley Borough Council,http://statistics.data.gov.uk/id/local-authority/30UE,Unapportionable Central OHeads,1009,Business Development & Growth,General Repairs - Reactive,20004,Repairs Maintenance & Alts,5005,General Repairs,21/12/2016,117169,253.49,Revenue,Corlett Electrical Eng Co Ltd,16271
Chorley Borough Council,http://statistics.data.gov.uk/id/local-authority/30UE,Central Support Services,1009,Early Intervention,Miscellaneous Expenses,40200,Miscellaneous Expenses,5034,Mount of defibrillation unit at Astley Village Community Centre and connection to electrical supply,09/12/2016,117553,449.80,Revenue,Corlett Electrical Eng Co Ltd,16271
Chorley Borough Council,http://statistics.data.gov.uk/id/local-authority/30UE,Business Support,1095,Business Development & Growth,Other Capital Related Fees,3024,Capital Expenditure,Capital,Provision of structural and civil engineering services in accordance with tender dated 22/11/2016.,23/12/2016,117998,"3,740.00",Revenue,Curtins Consulting Engineers,20049
Chorley Borough Council,http://statistics.data.gov.uk/id/local-authority/30UE,Service Management & Support,1009,Customer & Digital,Supplies-Grounds Maintenance,40025,"Equipment, Furniture & Materia",5023,"Purchase and delivery of 10ft shipping container, for sandbag storage Delivery to community centre",21/12/2016,117799,"1,350.00",Revenue,D Cain & Son Ltd,21353
Chorley Borough Council,http://statistics.data.gov.uk/id/local-authority/30UE,Business Support,1095,Business Development & Growth,Grants To Other Organisations,40127,Grants and Subscriptions,5031,shop grant,02/12/2016,117387,"1,473.00",Revenue,D Owd Inn,76299
Chorley Borough Council,http://statistics.data.gov.uk/id/local-authority/30UE,Business Support,1095,Business Development & Growth,Grants To Other Organisations,40127,Grants and Subscriptions,5031,business rates,02/12/2016,117387,185.22,Revenue,D Owd Inn,76299
Chorley Borough Council,http://statistics.data.gov.uk/id/local-authority/30UE,Corporate Management,1008,Customer & Digital,Other Contributions,40145,Grants and Subscriptions,5031,ADDRESS REDACTED,21/12/2016,117865,456.00,Revenue,NAME REDACTED,74003
Chorley Borough Council,http://statistics.data.gov.uk/id/local-authority/30UE,General Government Grants,,Policy & Governance,Revenue Support Grant,69000,Income not in NCOS,,revenue,20/12/2016,117235,"-109,615.00",Revenue,Department of Communities and Local Government,16280
Chorley Borough Council,http://statistics.data.gov.uk/id/local-authority/30UE,Collection Fund Revenue Accoun,,Policy & Governance,NNDR Central Share,2034,Precepts & Collection Fund,Precept,br share,20/12/2016,117235,"1,163,991.00",Revenue,Department of Communities and Local Government,16280
Chorley Borough Council,http://statistics.data.gov.uk/id/local-authority/30UE,Collection Fund Revenue Accoun,,Policy & Governance,NNDR Central Share,2034,Precepts & Collection Fund,Precept,collection,20/12/2016,117235,"4,866.00",Revenue,Department of Communities and Local Government,16280
Chorley Borough Council,http://statistics.data.gov.uk/id/local-authority/30UE,Unapportionable Central OHeads,1009,Early Intervention,HR Recruitment Expenses,15200,Indirect Employee Expenses,5002,DBS checks,20/12/2016,117097,176.00,Revenue,Disclosure & Barring Service,16387
Chorley Borough Council,http://statistics.data.gov.uk/id/local-authority/30UE,Corporate Management,1008,Early Intervention,CRB Disclosure Fees,40070,Services,5027,licencing,20/12/2016,117097,264.00,Revenue,Disclosure & Barring Service,16387
Chorley Borough Council,http://statistics.data.gov.uk/id/local-authority/30UE,Economic Development,1096,Business Development & Growth,Publicity - Advertising,40157,Miscellaneous Expenses,5034,"Coach Monthly, Features, Christmas for Groups Issue Date: Jul 2016 Editorial: 200 words and image Size: 1/4 Copy Instructions",07/12/2016,115561,200.00,Revenue,Diversified Business Communications UK,68712
Chorley Borough Council,http://statistics.data.gov.uk/id/local-authority/30UE,Economic Development,1096,Business Development & Growth,Publicity - Advertising,40157,Miscellaneous Expenses,5034,"Coach Monthly, Classified, North West 12 editions from June 2016 - May 2017",07/12/2016,115561,298.00,Revenue,Diversified Business Communications UK,68712
Chorley Borough Council,http://statistics.data.gov.uk/id/local-authority/30UE,Corporate Management,1008,Customer & Digital,Other Contributions,40145,Grants and Subscriptions,5031,ADDRESS REDACTED,02/12/2016,117416,"2,338.80",Revenue,NAME REDACTED,73793
Chorley Borough Council,http://statistics.data.gov.uk/id/local-authority/30UE,Central Support Services,1009,Customer & Digital,Consultants` Fees,40077,Services,5027,Listed buildings - new file system including training,21/12/2016,117753,800.00,Revenue,EDM Consulting Ltd,55511
Chorley Borough Council,http://statistics.data.gov.uk/id/local-authority/30UE,Central Support Services,1009,Customer & Digital,Consultants` Fees,40077,Services,5027,Northgate Public Access � CAPSUNI document descriptions,21/12/2016,117753,800.00,Revenue,EDM Consulting Ltd,55511
Chorley Borough Council,http://statistics.data.gov.uk/id/local-authority/30UE,Central Support Services,1009,Customer & Digital,Mobile Voice and Data,40086,Communication and Computing,5028,Dec-16,21/12/2016,117632,540.99,Revenue,EE - Orange,16486
Chorley Borough Council,http://statistics.data.gov.uk/id/local-authority/30UE,Central Support Services,1009,Customer & Digital,Mobile Voice and Data,40086,Communication and Computing,5028,nov,21/12/2016,117524,"2,026.80",Revenue,EE LIMITED,63366
Chorley Borough Council,http://statistics.data.gov.uk/id/local-authority/30UE,Unapportionable Central OHeads,1009,Business Development & Growth,General Repairs - Reactive,20004,Repairs Maintenance & Alts,5005,Blanket order for Reactive works from October 2016.,21/12/2016,116639,460.00,Revenue,Ellesmere Engineering Co Ltd,17520
Chorley Borough Council,http://statistics.data.gov.uk/id/local-authority/30UE,Building Control,1090,Customer & Digital,IT Software - Annual Licences,40101,Communication and Computing,5028,Elmhurst Energy Design Software annual renewal,09/12/2016,117638,350.00,Revenue,Elmhurst Energy Systems Ltd,21165
Chorley Borough Council,http://statistics.data.gov.uk/id/local-authority/30UE,Business Support,1095,Business Development & Growth,Miscellaneous Expenses,40200,Miscellaneous Expenses,5034,For ecological consultancy as part of Digital Health Park,14/12/2016,116214,350.00,Revenue,ERAP Ltd,76271
Chorley Borough Council,http://statistics.data.gov.uk/id/local-authority/30UE,Democratic Represent and  Mgnt,1007,Customer & Digital,Miscellaneous Expenses,40200,Miscellaneous Expenses,5034,16ft Root balled Christmas tree,07/12/2016,117534,495.00,Revenue,Everglades Nurseries Ltd,20202
Chorley Borough Council,http://statistics.data.gov.uk/id/local-authority/30UE,Service Management & Support,1009,Customer & Digital,Supplies-Grounds Maintenance,40025,"Equipment, Furniture & Materia",5023,Various plants for the fairy garden comp Various shrubs/plants for Clayton`s display,21/12/2016,117797,263.50,Revenue,Everglades Nurseries Ltd,20202
Chorley Borough Council,http://statistics.data.gov.uk/id/local-authority/30UE,Service Management & Support,1009,Customer & Digital,Tools & Equipment - Purchase,40003,"Equipment, Furniture & Materia",5023,"3 x Allett C20 c/w 10 bladed cutting reel cassette also 2 x Scarifying cassette, 2 x Tungsten Verticut cassettes and 2 x Brusk",15/12/2016,116594,"15,040.00",Revenue,F R Sharrock Ltd,18091
Chorley Borough Council,http://statistics.data.gov.uk/id/local-authority/30UE,Service Management & Support,1009,Customer & Digital,Hire Of Transport,30028,Contrct Hire & Operating Lease,5018,tractor and side arm flail at price quoted via the chest through until 31/03/2017 Please use this order number as from 01/04/2016,07/12/2016,117199,"1,639.84",Revenue,F R Sharrock Ltd,18091
Chorley Borough Council,http://statistics.data.gov.uk/id/local-authority/30UE,Service Management & Support,1009,Customer & Digital,Hire Of Transport,30028,Contrct Hire & Operating Lease,5018,tractor and side arm flail at price quoted via the chest through until 31/03/2017 Please use this order number as from 01/04/2016,21/12/2016,117673,"1,639.84",Revenue,F R Sharrock Ltd,18091
Chorley Borough Council,http://statistics.data.gov.uk/id/local-authority/30UE,Service Management & Support,1009,Customer & Digital,Supplies - Workshop,40246,"Equipment, Furniture & Materia",5023,Supply items as on Pro-Forma invoice number 118096 for Chorley Council as per Email from NAME REDACTED,21/12/2016,117922,"1,067.25",Revenue,F R Sharrock Ltd,18091
Chorley Borough Council,http://statistics.data.gov.uk/id/local-authority/30UE,Service Management & Support,1009,Customer & Digital,Vehicle Maintenance,30045,Direct Transport Costs,5016,Fit 14 trackers to new Vauxhall Movano tippers as on invoice number 88582,07/12/2016,117494,700.00,Revenue,G & S Auto Electrical Services,16323
Chorley Borough Council,http://statistics.data.gov.uk/id/local-authority/30UE,Unapportionable Central OHeads,1009,Policy & Governance,Refreshments,40036,Catering,5024,083040061 8oz Brown Kraft Ripple Cup 3 boxes @ 33.93 Total 101.79,07/12/2016,116105,101.79,Revenue,G C Birchall Ltd T/A Birchall Foodservice,69765
Chorley Borough Council,http://statistics.data.gov.uk/id/local-authority/30UE,Unapportionable Central OHeads,1009,Policy & Governance,Refreshments,40036,Catering,5024,022560008 Millac Maid Milk Portions  2 boxes @ 4.54 Total �,07/12/2016,116105,9.08,Revenue,G C Birchall Ltd T/A Birchall Foodservice,69765
Chorley Borough Council,http://statistics.data.gov.uk/id/local-authority/30UE,Unapportionable Central OHeads,1009,Policy & Governance,Refreshments,40036,Catering,5024,024530002 Country Range Whole Orange Sugar Free Cordial 1 x 5litre bottle,07/12/2016,116105,2.06,Revenue,G C Birchall Ltd T/A Birchall Foodservice,69765
Chorley Borough Council,http://statistics.data.gov.uk/id/local-authority/30UE,Unapportionable Central OHeads,1009,Policy & Governance,Refreshments,40036,Catering,5024,024530008 Country Range No Added Sugar Apple and Blackcurrant 1 x 5litre bottle,07/12/2016,116105,2.99,Revenue,G C Birchall Ltd T/A Birchall Foodservice,69765
Chorley Borough Council,http://statistics.data.gov.uk/id/local-authority/30UE,Unapportionable Central OHeads,1009,Policy & Governance,Refreshments,40036,Catering,5024,020510001 Country Range sweet assorted biscuits 2KG box - 6 boxes total 37.68,07/12/2016,116105,37.68,Revenue,G C Birchall Ltd T/A Birchall Foodservice,69765
Chorley Borough Council,http://statistics.data.gov.uk/id/local-authority/30UE,Unapportionable Central OHeads,1009,Policy & Governance,Refreshments,40036,Catering,5024,025500051 Cafe Nueva Prima Fairtrade Coffee 4 x 500g tins total 81.92,07/12/2016,116105,81.92,Revenue,G C Birchall Ltd T/A Birchall Foodservice,69765
Chorley Borough Council,http://statistics.data.gov.uk/id/local-authority/30UE,Unapportionable Central OHeads,1009,Policy & Governance,Refreshments,40036,Catering,5024,"25514013	Colombian Fairtrade Freeze Dried Coffee Sticks 4 boxes total 79.92",07/12/2016,116105,53.34,Revenue,G C Birchall Ltd T/A Birchall Foodservice,69765
Chorley Borough Council,http://statistics.data.gov.uk/id/local-authority/30UE,Unapportionable Central OHeads,1009,Policy & Governance,Refreshments,40036,Catering,5024,"025570018	Fairtrade Chocolate Sachets 18g 4 boxes total 50.48",07/12/2016,116105,25.24,Revenue,G C Birchall Ltd T/A Birchall Foodservice,69765
Chorley Borough Council,http://statistics.data.gov.uk/id/local-authority/30UE,Unapportionable Central OHeads,1009,Policy & Governance,Refreshments,40036,Catering,5024,"024535002	Country Range Orange Juice 1 case of 12 x 1ltr",07/12/2016,116105,7.08,Revenue,G C Birchall Ltd T/A Birchall Foodservice,69765
Chorley Borough Council,http://statistics.data.gov.uk/id/local-authority/30UE,Capital,Capital,Early Intervention,Grants,3002,Capital Expenditure,Capital,ADDRESS REDACTED,21/12/2016,117868,"4,200.00",Capital,G McGavock Ltd,16921
Chorley Borough Council,http://statistics.data.gov.uk/id/local-authority/30UE,Capital,Capital,Policy & Governance,Main Contractor,3007,Capital Expenditure,Capital,"Survey work on the Great Hall wall to check movement by NAME REDACTED. 1753 for four days on site, one day processing",09/12/2016,117577,"1,753.00",Capital,Geoff W Maybank,64389
Chorley Borough Council,http://statistics.data.gov.uk/id/local-authority/30UE,Unapportionable Central OHeads,1009,Policy & Governance,Mayors Medals,40029,"Equipment, Furniture & Materia",5023,Valuation of Civic Regalia.,23/12/2016,117967,500.00,Revenue,George Banks,22177
Chorley Borough Council,http://statistics.data.gov.uk/id/local-authority/30UE,Corporate Management,1008,Customer & Digital,Other Contributions,40145,Grants and Subscriptions,5031,ADDRESS REDACTED,14/12/2016,117691,"4,706.00",Revenue,NAME REDACTED,73954
Chorley Borough Council,http://statistics.data.gov.uk/id/local-authority/30UE,Central Support Services,1009,Early Intervention,Miscellaneous Expenses,40200,Miscellaneous Expenses,5034,Graffiti removal - various locations,07/12/2016,117382,550.00,Revenue,Graffiti Away,76316
Chorley Borough Council,http://statistics.data.gov.uk/id/local-authority/30UE,Central Support Services,1009,Early Intervention,Miscellaneous Expenses,40200,Miscellaneous Expenses,5034,Graffiti removal - various locations,09/12/2016,117588,"1,172.50",Revenue,Graffiti Away,76316
Chorley Borough Council,http://statistics.data.gov.uk/id/local-authority/30UE,Corporate Management,1008,Policy & Governance,External Audit,40064,Services,5027,2016/17 External Audit - Main Audit fee,21/12/2016,117808,"11,314.00",Revenue,Grant Thornton UK LLP,57322
Chorley Borough Council,http://statistics.data.gov.uk/id/local-authority/30UE,Building Control,1090,Policy & Governance,HM Land Registry Fees,40174,Miscellaneous Expenses,5034,building control,20/12/2016,117664,4.00,Revenue,H M Land Registry,17567
Chorley Borough Council,http://statistics.data.gov.uk/id/local-authority/30UE,Housing Strategy,1069,Policy & Governance,HM Land Registry Fees,40174,Miscellaneous Expenses,5034,housing needs,20/12/2016,117664,30.00,Revenue,H M Land Registry,17567
Chorley Borough Council,http://statistics.data.gov.uk/id/local-authority/30UE,Unapportionable Central OHeads,1009,Policy & Governance,HM Land Registry Fees,40174,Miscellaneous Expenses,5034,legal,20/12/2016,117664,9.00,Revenue,H M Land Registry,17567
Chorley Borough Council,http://statistics.data.gov.uk/id/local-authority/30UE,Unapportionable Central OHeads,1009,Policy & Governance,HM Land Registry Fees,40174,Miscellaneous Expenses,5034,liberata,20/12/2016,117664,635.00,Revenue,H M Land Registry,17567
Chorley Borough Council,http://statistics.data.gov.uk/id/local-authority/30UE,Unapportionable Central OHeads,1009,Policy & Governance,HM Land Registry Fees,40174,Miscellaneous Expenses,5034,local tax,20/12/2016,117664,33.00,Revenue,H M Land Registry,17567
Chorley Borough Council,http://statistics.data.gov.uk/id/local-authority/30UE,Development Control,1091,Policy & Governance,HM Land Registry Fees,40174,Miscellaneous Expenses,5034,planning,20/12/2016,117664,101.00,Revenue,H M Land Registry,17567
Chorley Borough Council,http://statistics.data.gov.uk/id/local-authority/30UE,Central Support Services,1009,Policy & Governance,HM Land Registry Fees,40174,Miscellaneous Expenses,5034,people,20/12/2016,117664,58.00,Revenue,H M Land Registry,17567
Chorley Borough Council,http://statistics.data.gov.uk/id/local-authority/30UE,Elections,1012,Policy & Governance,Service Fees,40056,Services,5027,Hera for use with Electoral Registration Annual Canvass 2016,09/12/2016,117574,"4,233.02",Revenue,Halarose Limited,18133
Chorley Borough Council,http://statistics.data.gov.uk/id/local-authority/30UE,Unapportionable Central OHeads,1009,Policy & Governance,Exhibitions & Special Events,40158,Miscellaneous Expenses,5034,Oil supplied for generator for ice rink Christmas attraction 2016,15/12/2016,117781,676.82,Revenue,Harrison Oils Ltd,76429
Chorley Borough Council,http://statistics.data.gov.uk/id/local-authority/30UE,Unapportionable Central OHeads,1009,Policy & Governance,Exhibitions & Special Events,40158,Miscellaneous Expenses,5034,Oil supplied for generator for ice rink Christmas attraction 2016,15/12/2016,117782,"1,356.14",Revenue,Harrison Oils Ltd,76429
Chorley Borough Council,http://statistics.data.gov.uk/id/local-authority/30UE,Unapportionable Central OHeads,1009,Policy & Governance,Exhibitions & Special Events,40158,Miscellaneous Expenses,5034,Oil supplied for generator for ice rink Christmas attraction 2016,21/12/2016,117925,831.79,Revenue,Harrison Oils Ltd,76429
Chorley Borough Council,http://statistics.data.gov.uk/id/local-authority/30UE,Corporate Management,1008,Customer & Digital,Newsletter Production,40166,Miscellaneous Expenses,5034,"2017 Refuse and Recycling Calendar, As per quote 101403. NAME REDACTED to supply artwork.",21/12/2016,117362,"3,335.00",Revenue,Haslam PrintersLtd,21777
Chorley Borough Council,http://statistics.data.gov.uk/id/local-authority/30UE,Business Support,1095,Customer & Digital,Professional Fees,40063,Services,5027,"Interim fees in connection with general advice given on the proposed development at Market Walk,inc liaising with the Professional",20/12/2016,117749,"5,000.00",Revenue,Hill Dickinson LLP,62638
Chorley Borough Council,http://statistics.data.gov.uk/id/local-authority/30UE,Business Support,1095,Customer & Digital,Professional Fees,40063,Services,5027,Professional Fees,20/12/2016,117749,98.50,Revenue,Hill Dickinson LLP,62638
Chorley Borough Council,http://statistics.data.gov.uk/id/local-authority/30UE,Capital,Capital,Business Development & Growth,Architects Fees,3022,Capital Expenditure,Capital,"Provision of Architectural and Principal Designer Services for the Digital Office Park, Chorley in accordance with tender date",21/12/2016,117915,"13,680.62",Capital,Howarth Litchfield Partnership,76440
Chorley Borough Council,http://statistics.data.gov.uk/id/local-authority/30UE,Capital,Capital,Business Development & Growth,Consultants Fees,3025,Capital Expenditure,Capital,For provision of project management/employers agent services in accordance with tender dated 30.9.2016.,21/12/2016,117910,"4,150.00",Capital,Identity Consult Ltd,76426
Chorley Borough Council,http://statistics.data.gov.uk/id/local-authority/30UE,Central Support Services,1009,Customer & Digital,Computer Equipment-Purchase,40098,Communication and Computing,5028,Lightning to USB cable 1m Manu. Part#::MD818ZM/A,21/12/2016,117894,254.85,Revenue,Insight Direct (UK) LTD,21768
Chorley Borough Council,http://statistics.data.gov.uk/id/local-authority/30UE,Business Support,1095,Business Development & Growth,Cleaning/Attendants' Services,20041,Cleaning and Domestic Supplies,5012,To provide daily cleaning services to Market Walk Shopping Centre April 206 - March 2017 @ 4310.21 per month,07/12/2016,117428,"4,310.21",Revenue,Interserve,70619
Chorley Borough Council,http://statistics.data.gov.uk/id/local-authority/30UE,Unapportionable Central OHeads,1009,Policy & Governance,Publicity - Advertising,40157,Miscellaneous Expenses,5034,Full page advert in the Horwich Advertiser for Christmas Winter Wonderland 2016,21/12/2016,117849,250.00,Revenue,Investors in Publishing,21455
Chorley Borough Council,http://statistics.data.gov.uk/id/local-authority/30UE,Business Support,1095,Business Development & Growth,Refuse Collection,20037,Cleaning and Domestic Supplies,5012,To supply Waste Compactor services to MWSC HD260TR Serial No:  02601707021135 April 2016 - March 2017,02/12/2016,117343,270.00,Revenue,J&H Rentals Limited,70699
Chorley Borough Council,http://statistics.data.gov.uk/id/local-authority/30UE,Unapportionable Central OHeads,1009,Policy & Governance,Publicity - Advertising,40157,Miscellaneous Expenses,5034,Christmas events advertising,02/12/2016,117344,550.00,Revenue,Jam Design and Publications Ltd,76061
Chorley Borough Council,http://statistics.data.gov.uk/id/local-authority/30UE,Unapportionable Central OHeads,1009,Policy & Governance,Miscellaneous Expenses,40200,Miscellaneous Expenses,5034,Performance and tuition by the Birmingham Ice Freestylers at the 9 December opening of the ice rink,21/12/2016,117822,270.00,Revenue,Jermelle Banner,76430
Chorley Borough Council,http://statistics.data.gov.uk/id/local-authority/30UE,Service Management & Support,1009,Customer & Digital,Supplies-Grounds Maintenance,40025,"Equipment, Furniture & Materia",5023,Wooden pegs,07/12/2016,117460,190.00,Revenue,John H Mayor & Sons Ltd,16635
Chorley Borough Council,http://statistics.data.gov.uk/id/local-authority/30UE,Service Management & Support,1009,Customer & Digital,Supplies-Grounds Maintenance,40025,"Equipment, Furniture & Materia",5023,Edging Board 100mm x 25mm x 3.6m,07/12/2016,117460,151.20,Revenue,John H Mayor & Sons Ltd,16635
Chorley Borough Council,http://statistics.data.gov.uk/id/local-authority/30UE,Development Control,1091,Customer & Digital,Statutory Notices,40160,Miscellaneous Expenses,5034,Planning Public Notices to appear in the Chorley Guardian April 2016 to March 2017,22/12/2016,117939,356.58,Revenue,Johnston Publishing Ltd,20072
Chorley Borough Council,http://statistics.data.gov.uk/id/local-authority/30UE,Service Management & Support,1009,Customer & Digital,Vehicle Maintenance,30045,Direct Transport Costs,5016,Supply spray jet nozzle No 21-31 as per Email from NAME REDACTED delivered to Bengal St depot,21/12/2016,117507,50.24,Revenue,Johnston Sweepers Limited,20778
Chorley Borough Council,http://statistics.data.gov.uk/id/local-authority/30UE,Service Management & Support,1009,Customer & Digital,Vehicle Maintenance,30045,Direct Transport Costs,5016,Supply discharge pendant for Johnston VT651 No 7008222 as per Email form NAME REDACTED,21/12/2016,117507,425.02,Revenue,Johnston Sweepers Limited,20778
Chorley Borough Council,http://statistics.data.gov.uk/id/local-authority/30UE,Central Support Services,1009,Early Intervention,Miscellaneous Expenses,40200,Miscellaneous Expenses,5034,"A Frame Barrier, Posts Attached, Plain Galvanized Finis For the attention of NAME REDACTED - Delivery Chorley Council",07/12/2016,117345,605.00,Revenue,K barriers Ltd,65909
Chorley Borough Council,http://statistics.data.gov.uk/id/local-authority/30UE,Unapportionable Central OHeads,1009,Customer & Digital,Asset Maintenance Fund,20012,Repairs Maintenance & Alts,5005,Carryout tarmacking works as per your quotation No 5967 at Bengal St depot to be carried out on Satrurday 3rd of December,21/12/2016,117509,"2,560.00",Revenue,K Darlington and Son,21930
Chorley Borough Council,http://statistics.data.gov.uk/id/local-authority/30UE,Service Management & Support,1009,Customer & Digital,External Contractor,40198,Miscellaneous Expenses,5034,Back street resurfacing Mayfield Ave/Railway Road As per Quotation No. 5977.1,15/12/2016,117730,"2,258.80",Revenue,K Darlington and Son,21930
Chorley Borough Council,http://statistics.data.gov.uk/id/local-authority/30UE,Central Support Services,1009,Customer & Digital,Miscellaneous Expenses,40200,Miscellaneous Expenses,5034,Tarmacadam works at Meadow Street/Back Railway View Adlington Quotation No. S960,21/12/2016,117819,"6,000.00",Revenue,K Darlington and Son,21930
Chorley Borough Council,http://statistics.data.gov.uk/id/local-authority/30UE,Corporate Management,1008,Customer & Digital,Other Contributions,40145,Grants and Subscriptions,5031,ADDRESS REDACTED,02/12/2016,117417,"3,790.60",Revenue,NAME REDACTED,73753
Chorley Borough Council,http://statistics.data.gov.uk/id/local-authority/30UE,Homelessness,1075,Early Intervention,External Contractor,40198,Miscellaneous Expenses,5034,Provision of Housing Drop-In,15/12/2016,117786,"3,750.00",Revenue,Key,61252
Chorley Borough Council,http://statistics.data.gov.uk/id/local-authority/30UE,Democratic Represent and  Mgnt,1007,Policy & Governance,Conservation Of Exhibits,40059,Services,5027,Quotation number - Q0138817-4 0045080 - Rapid 2 blue 6 chipboard shelves (1980x1016x610) - qty 5 - price 119.00each,21/12/2016,117902,659.00,Revenue,Key Industrial Equipment Ltd,16877
Chorley Borough Council,http://statistics.data.gov.uk/id/local-authority/30UE,Unapportionable Central OHeads,1009,Policy & Governance,Exhibitions & Special Events,40158,Miscellaneous Expenses,5034,Pyrotechnic display from the Town Hall for the Christmas Lights Switch On  event,21/12/2016,117850,"1,800.00",Revenue,Komodo Fireworks Ltd,72809
Chorley Borough Council,http://statistics.data.gov.uk/id/local-authority/30UE,Control Accounts,Control,Policy & Governance,General Balances,100,Balance Sheet,Balance,sal ded,21/12/2016,117870,"1,151.98",Revenue,Labour Councillors Association,17577
Chorley Borough Council,http://statistics.data.gov.uk/id/local-authority/30UE,Precepts and Collection Fund,Precepts,Policy & Governance,LCC Precept,2009,Precepts & Collection Fund,Precept,ctax,20/12/2016,117418,"4,181,662.00",Revenue,Lancashire County Council,18386
Chorley Borough Council,http://statistics.data.gov.uk/id/local-authority/30UE,Collection Fund Revenue Accoun,,Policy & Governance,NNDR County Share,2036,Precepts & Collection Fund,Precept,brates,20/12/2016,117418,"262,993.00",Revenue,Lancashire County Council,18386
Chorley Borough Council,http://statistics.data.gov.uk/id/local-authority/30UE,Capital,Capital,Early Intervention,Grants,3002,Capital Expenditure,Capital,ADDRESS REDACTED,14/12/2016,117694,"2,944.00",Capital,Lancashire County Council,17758
Chorley Borough Council,http://statistics.data.gov.uk/id/local-authority/30UE,Capital,Capital,Early Intervention,Grants,3002,Capital Expenditure,Capital,ADDRESS REDACTED,14/12/2016,117695,834.00,Capital,Lancashire County Council,17758
Chorley Borough Council,http://statistics.data.gov.uk/id/local-authority/30UE,Capital,Capital,Early Intervention,Grants,3002,Capital Expenditure,Capital,ADDRESS REDACTED,14/12/2016,117696,648.95,Capital,Lancashire County Council,17758
Chorley Borough Council,http://statistics.data.gov.uk/id/local-authority/30UE,Capital,Capital,Early Intervention,Grants,3002,Capital Expenditure,Capital,ADDRESS REDACTED,21/12/2016,117880,"9,856.00",Capital,Lancashire County Council,17758
Chorley Borough Council,http://statistics.data.gov.uk/id/local-authority/30UE,Unapportionable Central OHeads,1009,Policy & Governance,Pensions Deficit Recovery Contributions,12003,Direct Employee Expenses,5001,pension recharge,20/12/2016,117881,"36,125.71",Revenue,Lancashire County Council,18386
Chorley Borough Council,http://statistics.data.gov.uk/id/local-authority/30UE,Capital,Capital,Early Intervention,Grants,3002,Capital Expenditure,Capital,ADDRESS REDACTED,23/12/2016,117992,"3,669.00",Capital,Lancashire County Council,17758
Chorley Borough Council,http://statistics.data.gov.uk/id/local-authority/30UE,Service Management & Support,1009,Customer & Digital,Tools & Equipment - Purchase,40003,"Equipment, Furniture & Materia",5023,Supply of 1 x 16 tonne skip wagon as per your quote via the Further competition under PR05 Framework agreement  No 324  ,21/12/2016,114726,"71,680.00",Revenue,LANCASHIRE DAF,18149
Chorley Borough Council,http://statistics.data.gov.uk/id/local-authority/30UE,Service Management & Support,1009,Customer & Digital,Tools & Equipment - Purchase,40003,"Equipment, Furniture & Materia",5023,Tools & Equipment,21/12/2016,114726,705.00,Revenue,LANCASHIRE DAF,18149
Chorley Borough Council,http://statistics.data.gov.uk/id/local-authority/30UE,Unapportionable Central OHeads,1009,Policy & Governance,Pensions Deficit Recovery Contributions,12003,Direct Employee Expenses,5001,DEFICIT OCT,20/12/2016,116453,"79,633.33",Revenue,Lancashire Pensions Services,16696
Chorley Borough Council,http://statistics.data.gov.uk/id/local-authority/30UE,Unapportionable Central OHeads,1009,Policy & Governance,Pensions Increase Act Payments,18005,Indirect Employee Expenses,5002,dc,20/12/2016,117745,"1,285.04",Revenue,Lancashire Pensions Services,16696
Chorley Borough Council,http://statistics.data.gov.uk/id/local-authority/30UE,Unapportionable Central OHeads,1009,Policy & Governance,Pensions Increase Act Payments,18005,Indirect Employee Expenses,5002,md,20/12/2016,117745,"19,046.52",Revenue,Lancashire Pensions Services,16696
Chorley Borough Council,http://statistics.data.gov.uk/id/local-authority/30UE,Corporate Management,1008,Customer & Digital,Clinical Waste Collection,50007,Private Contractors,5042,"Disposal of clinical waste from Chorley household. April 2016 to March 2017. Yellow bag collections, approx. 550 per month.",07/12/2016,117435,"1,019.92",Revenue,Lancashire Teaching Hospitals NHS FT,19003
Chorley Borough Council,http://statistics.data.gov.uk/id/local-authority/30UE,Corporate Management,1008,Customer & Digital,Clinical Waste Collection,50007,Private Contractors,5042,"Disposal of clinical waste from Chorley household. April 2016 to March 2017. Yellow bag collections, approx. 550 per month.",14/12/2016,117769,"1,153.68",Revenue,Lancashire Teaching Hospitals NHS FT,19003
Chorley Borough Council,http://statistics.data.gov.uk/id/local-authority/30UE,Precepts and Collection Fund,Precepts,Policy & Governance,LCFA Precept,2011,Precepts & Collection Fund,Precept,ctax,20/12/2016,117419,"233,211.00",Revenue,Lancs Combined Fire Authority,17768
Chorley Borough Council,http://statistics.data.gov.uk/id/local-authority/30UE,Collection Fund Revenue Accoun,,Policy & Governance,NNDR Fire Share,2037,Precepts & Collection Fund,Precept,brates,20/12/2016,117419,"29,222.00",Revenue,Lancs Combined Fire Authority,17768
Chorley Borough Council,http://statistics.data.gov.uk/id/local-authority/30UE,Service Management & Support,1009,Business Development & Growth,External Contractor,40198,Miscellaneous Expenses,5034,"Herras Fencing / Site set up Install 204m2 resi-mulch (Green and Brown, two colour) to 40mm depth allowing for some regulating",09/12/2016,117286,"11,975.00",Revenue,Landscape Engineering Ltd,54727
Chorley Borough Council,http://statistics.data.gov.uk/id/local-authority/30UE,Unapportionable Central OHeads,1009,Policy & Governance,Car Leasing Payment,14100,Direct Employee Expenses,5001,NAME REDACTED,07/12/2016,117411,"1,923.01",Revenue,LeasePlan UK Ltd T/A Automotive Leasing,65197
Chorley Borough Council,http://statistics.data.gov.uk/id/local-authority/30UE,Unapportionable Central OHeads,1009,Policy & Governance,Car Leasing Payment,14100,Direct Employee Expenses,5001,Car Lease,07/12/2016,117411,170.26,Revenue,LeasePlan UK Ltd T/A Automotive Leasing,65197
Chorley Borough Council,http://statistics.data.gov.uk/id/local-authority/30UE,Control Accounts,Control,Policy & Governance,Manual Control Account,1,Balance Sheet,Balance,Balance Sheet,07/12/2016,117411,-170.26,Revenue,LeasePlan UK Ltd T/A Automotive Leasing,65197
Chorley Borough Council,http://statistics.data.gov.uk/id/local-authority/30UE,Other Short Term Debtors,,Policy & Governance,Other Debtors,98,Balance Sheet,Balance,phones,07/12/2016,117352,"2,171.00",Revenue,Lets Connect Limited,68086
Chorley Borough Council,http://statistics.data.gov.uk/id/local-authority/30UE,Corporate Management,1008,Policy & Governance,Consultants` Fees,40077,Services,5027,Public service reform financial modelling,21/12/2016,117820,"9,397.50",Revenue,LG Futures,22551
Chorley Borough Council,http://statistics.data.gov.uk/id/local-authority/30UE,Central Support Services,1009,Early Intervention,Children's Activities,40188,Miscellaneous Expenses,5034,Delivery of Outdoor Adventure activities in August,15/12/2016,117748,"2,500.00",Revenue,Lister Logic LTD,22431
Chorley Borough Council,http://statistics.data.gov.uk/id/local-authority/30UE,Central Support Services,1009,Early Intervention,Play Events,40181,Miscellaneous Expenses,5034,Delivery of Rock climbing at Playday,15/12/2016,117748,500.00,Revenue,Lister Logic LTD,22431
Chorley Borough Council,http://statistics.data.gov.uk/id/local-authority/30UE,Local Tax Collection,1010,Policy & Governance,Legal Fees,40171,Miscellaneous Expenses,5034,Payment of costs incurred by the Local Government Association between April and September 2016 in connection with property,02/12/2016,117357,481.12,Revenue,Local Government Association,16243
Chorley Borough Council,http://statistics.data.gov.uk/id/local-authority/30UE,Unapportionable Central OHeads,1009,Policy & Governance,Publicity - Advertising,40157,Miscellaneous Expenses,5034,Full page advert for Christmas activities 2016,07/12/2016,117444,306.00,Revenue,Local Life 247 Ltd.,63624
Chorley Borough Council,http://statistics.data.gov.uk/id/local-authority/30UE,Unapportionable Central OHeads,1009,Policy & Governance,Publicity - Advertising,40157,Miscellaneous Expenses,5034,Full page advert for Christmas Winter Wonderland 2016,07/12/2016,117443,500.00,Revenue,Loop Publishing Ltd,18770
Chorley Borough Council,http://statistics.data.gov.uk/id/local-authority/30UE,Corporate Management,1008,Customer & Digital,Other Contributions,40145,Grants and Subscriptions,5031,ADDRESS REDACTED,09/12/2016,117650,"4,706.00",Revenue,NAME REDACTED,73835
Chorley Borough Council,http://statistics.data.gov.uk/id/local-authority/30UE,Service Management & Support,1009,Customer & Digital,Grounds Maintenance Contractor,20043,Grounds Maintenance Costs,5013,Work needs to be carried out on various sites,21/12/2016,117833,"4,405.00",Revenue,M J Walker,62044
Chorley Borough Council,http://statistics.data.gov.uk/id/local-authority/30UE,Central Support Services,1009,Early Intervention,Professional Fees,40063,Services,5027,Travel & Accommodation for Chair of Mankind attending DHR review,09/12/2016,117594,250.00,Revenue,Mankind,76199
Chorley Borough Council,http://statistics.data.gov.uk/id/local-authority/30UE,Corporate Management,1008,Customer & Digital,Other Contributions,40145,Grants and Subscriptions,5031,ADDRESS REDACTED,21/12/2016,117918,"5,000.00",Revenue,NAME REDACTED,73926
Chorley Borough Council,http://statistics.data.gov.uk/id/local-authority/30UE,Corporate Management,1008,Policy & Governance,Agency Staff,13000,Direct Employee Expenses,5001,Agency Fees,07/12/2016,117528,841.11,Revenue,Matrix SCM Ltd,22128
Chorley Borough Council,http://statistics.data.gov.uk/id/local-authority/30UE,Corporate Management,1008,Policy & Governance,Agency Staff,13000,Direct Employee Expenses,5001,Agency Fees,09/12/2016,117633,870.63,Revenue,Matrix SCM Ltd,22128
Chorley Borough Council,http://statistics.data.gov.uk/id/local-authority/30UE,Unapportionable Central OHeads,1009,Business Development & Growth,Planned Maintenance,20006,Repairs Maintenance & Alts,5005,Blanket order for PPM works from September 2016.,21/12/2016,117405,"1,647.50",Revenue,Maxigiene Environmental Services Ltd,67160
Chorley Borough Council,http://statistics.data.gov.uk/id/local-authority/30UE,Service Management & Support,1009,Customer & Digital,Supplies-Grounds Maintenance,40025,"Equipment, Furniture & Materia",5023,supply 20 ton of ultitrec delivered to Yarrow Valley Park.,09/12/2016,117559,391.83,Revenue,Mc & Ma Stewart (Haulage Ltd),16627
Chorley Borough Council,http://statistics.data.gov.uk/id/local-authority/30UE,Democratic Represent and  Mgnt,1007,Policy & Governance,Tools & Equipment - Purchase,40003,"Equipment, Furniture & Materia",5023,Please supply one HTX Transmitter at 395 + VAT,02/12/2016,117401,405.00,Revenue,Meaco Measurement & Control Ltd,16527
Chorley Borough Council,http://statistics.data.gov.uk/id/local-authority/30UE,Capital,Capital,Customer & Digital,Equipment,3014,Capital Expenditure,Capital,"Supply of 560 X 240 litre Green wheeled bins, with Chorley logo",21/12/2016,117903,"9,100.00",Capital,MGB Plastics Ltd,18624
Chorley Borough Council,http://statistics.data.gov.uk/id/local-authority/30UE,Business Support,1095,Business Development & Growth,Grants To Other Organisations,40127,Grants and Subscriptions,5031,subsidy 1,02/12/2016,117348,677.54,Revenue,NAME REDACTED,76075
Chorley Borough Council,http://statistics.data.gov.uk/id/local-authority/30UE,Capital,Capital,Early Intervention,Grants,3002,Capital Expenditure,Capital,ADDRESS REDACTED,09/12/2016,117602,"4,446.19",Capital,Mint Northwest Ltd,65607
Chorley Borough Council,http://statistics.data.gov.uk/id/local-authority/30UE,Capital,Capital,Early Intervention,Grants,3002,Capital Expenditure,Capital,ADDRESS REDACTED,09/12/2016,117603,"3,910.80",Capital,Mint Northwest Ltd,65607
Chorley Borough Council,http://statistics.data.gov.uk/id/local-authority/30UE,Private Sector HSG Renewal,1073,Early Intervention,External Contractor,40198,Miscellaneous Expenses,5034,ADDRESS REDACTED,09/12/2016,117619,256.00,Revenue,Mobility Care Services,70841
Chorley Borough Council,http://statistics.data.gov.uk/id/local-authority/30UE,Private Sector HSG Renewal,1073,Early Intervention,External Contractor,40198,Miscellaneous Expenses,5034,ADDRESS REDACTED,09/12/2016,117622,320.00,Revenue,Mobility Care Services,70841
Chorley Borough Council,http://statistics.data.gov.uk/id/local-authority/30UE,Business Support,1095,Business Development & Growth,Grants To Other Organisations,40127,Grants and Subscriptions,5031,sib grant,21/12/2016,117744,250.00,Revenue,NAME REDACTED,76427
Chorley Borough Council,http://statistics.data.gov.uk/id/local-authority/30UE,Business Support,1095,Business Development & Growth,Grants To Other Organisations,40127,Grants and Subscriptions,5031,Grant,02/12/2016,117375,"3,000.00",Revenue,NAME REDACTED,76402
Chorley Borough Council,http://statistics.data.gov.uk/id/local-authority/30UE,Business Support,1095,Business Development & Growth,Grants To Other Organisations,40127,Grants and Subscriptions,5031,Grant,02/12/2016,117375,"3,000.00",Revenue,NAME REDACTED,76402
Chorley Borough Council,http://statistics.data.gov.uk/id/local-authority/30UE,Corporate Management,1008,Customer & Digital,Other Contributions,40145,Grants and Subscriptions,5031,ADDRESS REDACTED,07/12/2016,117550,"2,800.00",Revenue,NAME REDACTED,22611
Chorley Borough Council,http://statistics.data.gov.uk/id/local-authority/30UE,Private Sector HSG Renewal,1073,Early Intervention,Miscellaneous Expenses,40200,Miscellaneous Expenses,5034,Provision of Energy Switching Support Service during November 2016,07/12/2016,117549,"1,200.00",Revenue,Mrs Heather Shaw,65606
Chorley Borough Council,http://statistics.data.gov.uk/id/local-authority/30UE,Business Support,1095,Business Development & Growth,Grants To Other Organisations,40127,Grants and Subscriptions,5031,shop floor grant,02/12/2016,117349,"3,412.50",Revenue,NAME REDACTED,76270
Chorley Borough Council,http://statistics.data.gov.uk/id/local-authority/30UE,Business Support,1095,Business Development & Growth,Grants To Other Organisations,40127,Grants and Subscriptions,5031,second phase payment,21/12/2016,117605,"3,000.00",Revenue,Nature Trail Nursery Ltd,75666
Chorley Borough Council,http://statistics.data.gov.uk/id/local-authority/30UE,Central Support Services,1009,Early Intervention,Miscellaneous Expenses,40200,Miscellaneous Expenses,5034,ADDRESS REDACTED,02/12/2016,116762,421.44,Revenue,Neales Waste Management,17583
Chorley Borough Council,http://statistics.data.gov.uk/id/local-authority/30UE,Central Support Services,1009,Early Intervention,Miscellaneous Expenses,40200,Miscellaneous Expenses,5034,ADDRESS REDACTED,02/12/2016,116763,809.42,Revenue,Neales Waste Management,17583
Chorley Borough Council,http://statistics.data.gov.uk/id/local-authority/30UE,Service Management & Support,1009,Customer & Digital,Refuse Collection,20037,Cleaning and Domestic Supplies,5012,Exchange of 35yrd street cleaning and flytip waste as per your price Please use this order from 01/04/2016 through to 31/03/2017,21/12/2016,117536,"2,800.00",Revenue,Neales Waste Management,17583
Chorley Borough Council,http://statistics.data.gov.uk/id/local-authority/30UE,Service Management & Support,1009,Customer & Digital,Refuse Collection,20037,Cleaning and Domestic Supplies,5012,Exchange of 35 yrd green waste skip as per your quote from Bengal St depot. Please use this order from 01/04/2016 ,21/12/2016,117536,380.53,Revenue,Neales Waste Management,17583
Chorley Borough Council,http://statistics.data.gov.uk/id/local-authority/30UE,Service Management & Support,1009,Customer & Digital,Refuse Collection,20037,Cleaning and Domestic Supplies,5012,Charges for green waste removal from Bengal St depot as per your quote. Please use this order No from 01/04/2016 ,21/12/2016,117536,675.59,Revenue,Neales Waste Management,17583
Chorley Borough Council,http://statistics.data.gov.uk/id/local-authority/30UE,Unapportionable Central OHeads,1009,Customer & Digital,Refuse Collection,20037,Cleaning and Domestic Supplies,5012,7. Provision of trade waste collections for the Town Hall. 2016 / 2017 (6 x 1100 litre bins per week),14/12/2016,117537,252.20,Revenue,Neales Waste Management,17583
Chorley Borough Council,http://statistics.data.gov.uk/id/local-authority/30UE,Unapportionable Central OHeads,1009,Customer & Digital,Refuse Collection,20037,Cleaning and Domestic Supplies,5012,"8. Provision of trade waste collections for the Civic Offices, Union Street, 2016 / 2017 (6 x 1100 litre bins per week)",14/12/2016,117542,252.20,Revenue,Neales Waste Management,17583
Chorley Borough Council,http://statistics.data.gov.uk/id/local-authority/30UE,Business Support,1095,Business Development & Growth,Refuse Collection,20037,Cleaning and Domestic Supplies,5012,Market Walk YARD 1 - General Waste compacted - 35 Cubic Yard Roll On / Roll Off Skip from Compactor,14/12/2016,117544,302.40,Revenue,Neales Waste Management,17583
Chorley Borough Council,http://statistics.data.gov.uk/id/local-authority/30UE,Business Support,1095,Business Development & Growth,Refuse Collection,20037,Cleaning and Domestic Supplies,5012,Market Walk YARD 1 - General Waste Compacted Disposal Costs per tonne (variable depended on weight collected),14/12/2016,117544,"2,175.57",Revenue,Neales Waste Management,17583
Chorley Borough Council,http://statistics.data.gov.uk/id/local-authority/30UE,Business Support,1095,Business Development & Growth,Refuse Collection,20037,Cleaning and Domestic Supplies,5012,Market Walk YARD 1 - Cardboard and plastic film 35 Cubic yard Ro Ro skip,14/12/2016,117544,140.76,Revenue,Neales Waste Management,17583
Chorley Borough Council,http://statistics.data.gov.uk/id/local-authority/30UE,Business Support,1095,Business Development & Growth,Refuse Collection,20037,Cleaning and Domestic Supplies,5012,Market Walk YARD 2 - cardboard and plastic film - 35 cubic yard Ro Ro skip,14/12/2016,117545,150.00,Revenue,Neales Waste Management,17583
Chorley Borough Council,http://statistics.data.gov.uk/id/local-authority/30UE,Business Support,1095,Business Development & Growth,Refuse Collection,20037,Cleaning and Domestic Supplies,5012,Market Walk YARD 2 - General Waste - 8 cubic yard FEL skip,14/12/2016,117545,220.00,Revenue,Neales Waste Management,17583
Chorley Borough Council,http://statistics.data.gov.uk/id/local-authority/30UE,Business Support,1095,Business Development & Growth,Refuse Collection,20037,Cleaning and Domestic Supplies,5012,Market Walk YARD 3 - cardboard and plastic film - 35 cubic yard Ro Ro skip,09/12/2016,117546,300.00,Revenue,Neales Waste Management,17583
Chorley Borough Council,http://statistics.data.gov.uk/id/local-authority/30UE,Business Support,1095,Business Development & Growth,Refuse Collection,20037,Cleaning and Domestic Supplies,5012,Market Walk YARD 3 - general waste - x2  8 cubic yard FEL skip Lift Costs,09/12/2016,117546,440.00,Revenue,Neales Waste Management,17583
Chorley Borough Council,http://statistics.data.gov.uk/id/local-authority/30UE,Central Support Services,1009,Customer & Digital,Miscellaneous Expenses,40200,Miscellaneous Expenses,5034,20yd skip hire for green waste at Eaves Green Chorley,07/12/2016,117548,578.95,Revenue,Neales Waste Management,17583
Chorley Borough Council,http://statistics.data.gov.uk/id/local-authority/30UE,Corporate Management,1008,Customer & Digital,Other Contributions,40145,Grants and Subscriptions,5031,ADDRESS REDACTED,09/12/2016,117651,"5,000.00",Revenue,NAME REDACTED,73996
Chorley Borough Council,http://statistics.data.gov.uk/id/local-authority/30UE,Corporate Management,1008,Customer & Digital,Other Contributions,40145,Grants and Subscriptions,5031,ADDRESS REDACTED,21/12/2016,117931,"4,705.00",Revenue,NAME REDACTED,76452
Chorley Borough Council,http://statistics.data.gov.uk/id/local-authority/30UE,Unapportionable Central OHeads,1009,Chief Executive,Postages,40082,Communication and Computing,5028,Credit for Franking Machine at Town Hall Offices,14/12/2016,117374,"1,000.00",Revenue,Neopost Ltd RCB Credifon A/C,20009
Chorley Borough Council,http://statistics.data.gov.uk/id/local-authority/30UE,Recreation & Sport,1037,Early Intervention,Fixtures & Fittings - Purchase,20027,Fixtures and Fittings,5010,CD589 Gopak Table Trolley small x 2,15/12/2016,117558,419.98,Revenue,Nisbets PLC,19593
Chorley Borough Council,http://statistics.data.gov.uk/id/local-authority/30UE,Recreation & Sport,1037,Early Intervention,Fixtures & Fittings - Purchase,20027,Fixtures and Fittings,5010,Supply Chair trolley GF944 x1,15/12/2016,117558,119.99,Revenue,Nisbets PLC,19593
Chorley Borough Council,http://statistics.data.gov.uk/id/local-authority/30UE,Recreation & Sport,1037,Early Intervention,Fixtures & Fittings - Purchase,20027,Fixtures and Fittings,5010,Supply Bolero folding chair pack of 10 x 4 GD386,15/12/2016,117558,341.64,Revenue,Nisbets PLC,19593
Chorley Borough Council,http://statistics.data.gov.uk/id/local-authority/30UE,Recreation & Sport,1037,Early Intervention,Fixtures & Fittings - Purchase,20027,Fixtures and Fittings,5010,Supply Jantex Wet Floor Safety Sign x 4,15/12/2016,117558,20.12,Revenue,Nisbets PLC,19593
Chorley Borough Council,http://statistics.data.gov.uk/id/local-authority/30UE,Recreation & Sport,1037,Early Intervention,Fixtures & Fittings - Purchase,20027,Fixtures and Fittings,5010,Supply Bolero Foldaway Utlilty Chair Black CE693,15/12/2016,117558,203.88,Revenue,Nisbets PLC,19593
Chorley Borough Council,http://statistics.data.gov.uk/id/local-authority/30UE,Recreation & Sport,1037,Early Intervention,Fixtures & Fittings - Purchase,20027,Fixtures and Fittings,5010,Supply Gopak folding table red DM949 x 4,15/12/2016,117558,334.84,Revenue,Nisbets PLC,19593
Chorley Borough Council,http://statistics.data.gov.uk/id/local-authority/30UE,Recreation & Sport,1037,Early Intervention,Fixtures & Fittings - Purchase,20027,Fixtures and Fittings,5010,supply Gopak folding table DM948 x 8,15/12/2016,117558,830.96,Revenue,Nisbets PLC,19593
Chorley Borough Council,http://statistics.data.gov.uk/id/local-authority/30UE,Unapportionable Central OHeads,1009,Policy & Governance,Exhibitions & Special Events,40158,Miscellaneous Expenses,5034,Hire of land train for Saturdays and Sundays in December for Santa Express 2016,21/12/2016,117707,"8,700.00",Revenue,North West Land Trains,73020
Chorley Borough Council,http://statistics.data.gov.uk/id/local-authority/30UE,Service Management & Support,1009,Customer & Digital,Vehicle Maintenance,30045,Direct Transport Costs,5016,Supply 6 x polywire brushes for Schmidt Swingo to be delivered to Bengal St depot,14/12/2016,117724,208.35,Revenue,Northern Municipal Spares Ltd,17752
Chorley Borough Council,http://statistics.data.gov.uk/id/local-authority/30UE,Service Management & Support,1009,Customer & Digital,Vehicle Maintenance,30045,Direct Transport Costs,5016,Supply 6 x Polly brushes for Schmidt Swingo to be delivered to Bengal St depot,14/12/2016,117724,139.41,Revenue,Northern Municipal Spares Ltd,17752
Chorley Borough Council,http://statistics.data.gov.uk/id/local-authority/30UE,Service Management & Support,1009,Customer & Digital,Hire Of Transport,30028,Contrct Hire & Operating Lease,5018,Hire of Ford Transit 3.5 tonne tipper reg FE65BRF for 25 week period as per quote,21/12/2016,117595,65.71,Revenue,Northgate Vehicle Hire (NW) Ltd,17360
Chorley Borough Council,http://statistics.data.gov.uk/id/local-authority/30UE,Service Management & Support,1009,Customer & Digital,Hire Of Transport,30028,Contrct Hire & Operating Lease,5018,Hire of Ford Transit 3.5 tonne tipper reg WN65MWW for 25 week period as per quote,21/12/2016,117595,407.43,Revenue,Northgate Vehicle Hire (NW) Ltd,17360
Chorley Borough Council,http://statistics.data.gov.uk/id/local-authority/30UE,Service Management & Support,1009,Customer & Digital,Hire Of Transport,30028,Contrct Hire & Operating Lease,5018,Hire of Ford Transit 3.5 tonne tipper reg WN65MHO for 25 week period as per quote,21/12/2016,117595,407.43,Revenue,Northgate Vehicle Hire (NW) Ltd,17360
Chorley Borough Council,http://statistics.data.gov.uk/id/local-authority/30UE,Service Management & Support,1009,Customer & Digital,Hire Of Transport,30028,Contrct Hire & Operating Lease,5018,Hire of Ford Transit 3.5 tonne tipper reg WN65UBO for 25 week period as per quote,21/12/2016,117595,407.43,Revenue,Northgate Vehicle Hire (NW) Ltd,17360
Chorley Borough Council,http://statistics.data.gov.uk/id/local-authority/30UE,Service Management & Support,1009,Customer & Digital,Hire Of Transport,30028,Contrct Hire & Operating Lease,5018,Hire of Ford Transit 3.5 tonne tipper reg WU65KZZfor 25 week period as per quote,21/12/2016,117595,407.43,Revenue,Northgate Vehicle Hire (NW) Ltd,17360
Chorley Borough Council,http://statistics.data.gov.uk/id/local-authority/30UE,Service Management & Support,1009,Customer & Digital,Hire Of Transport,30028,Contrct Hire & Operating Lease,5018,Hire of Ford Transit 3.5 tonne tipper reg ND63YEG for 25 week period as per quote,21/12/2016,117595,407.43,Revenue,Northgate Vehicle Hire (NW) Ltd,17360
Chorley Borough Council,http://statistics.data.gov.uk/id/local-authority/30UE,Service Management & Support,1009,Customer & Digital,Hire Of Transport,30028,Contrct Hire & Operating Lease,5018,Hire of Ford Transit crewcab NL12OFG for 6 week period at price quoted,21/12/2016,117595,509.29,Revenue,Northgate Vehicle Hire (NW) Ltd,17360
Chorley Borough Council,http://statistics.data.gov.uk/id/local-authority/30UE,Service Management & Support,1009,Customer & Digital,Hire Of Transport,30028,Contrct Hire & Operating Lease,5018,Hire of Ford Transit crewcab NL12ONR for 6 week period at price quoted,21/12/2016,117595,509.29,Revenue,Northgate Vehicle Hire (NW) Ltd,17360
Chorley Borough Council,http://statistics.data.gov.uk/id/local-authority/30UE,Service Management & Support,1009,Customer & Digital,Hire Of Transport,30028,Contrct Hire & Operating Lease,5018,Hire of Ford Transit crewcab NK13YPT for 6 week period at price quoted,21/12/2016,117595,509.29,Revenue,Northgate Vehicle Hire (NW) Ltd,17360
Chorley Borough Council,http://statistics.data.gov.uk/id/local-authority/30UE,Service Management & Support,1009,Customer & Digital,Hire Of Transport,30028,Contrct Hire & Operating Lease,5018,NJ15 FPE Medium car,21/12/2016,117595,36.60,Revenue,Northgate Vehicle Hire (NW) Ltd,17360
Chorley Borough Council,http://statistics.data.gov.uk/id/local-authority/30UE,Service Management & Support,1009,Customer & Digital,Hire Of Transport,30028,Contrct Hire & Operating Lease,5018,Hire of Ford Transit 3.5 tonne crewcab tipper reg NL12OFG for 25 week period as per quote,21/12/2016,117596,492.86,Revenue,Northgate Vehicle Hire (NW) Ltd,17360
Chorley Borough Council,http://statistics.data.gov.uk/id/local-authority/30UE,Service Management & Support,1009,Customer & Digital,Hire Of Transport,30028,Contrct Hire & Operating Lease,5018,Hire of Ford Transit 3.5 tonne crewcab tipper reg NL12ONR for 25 week period as per quote,21/12/2016,117596,492.86,Revenue,Northgate Vehicle Hire (NW) Ltd,17360
Chorley Borough Council,http://statistics.data.gov.uk/id/local-authority/30UE,Service Management & Support,1009,Customer & Digital,Hire Of Transport,30028,Contrct Hire & Operating Lease,5018,Hire of Ford Transit 3.5 tonne crewcab tipper reg NK13YPT for 25 week period as per quote,21/12/2016,117596,492.86,Revenue,Northgate Vehicle Hire (NW) Ltd,17360
Chorley Borough Council,http://statistics.data.gov.uk/id/local-authority/30UE,Service Management & Support,1009,Customer & Digital,Hire Of Transport,30028,Contrct Hire & Operating Lease,5018,Hire of Ford Transit tipper Reg WN65MWW for 6 week period at price quoted,21/12/2016,117596,394.29,Revenue,Northgate Vehicle Hire (NW) Ltd,17360
Chorley Borough Council,http://statistics.data.gov.uk/id/local-authority/30UE,Service Management & Support,1009,Customer & Digital,Hire Of Transport,30028,Contrct Hire & Operating Lease,5018,Hire of Ford Transit tipper Reg WN65MHO for 6 week period at price quoted,21/12/2016,117596,394.29,Revenue,Northgate Vehicle Hire (NW) Ltd,17360
Chorley Borough Council,http://statistics.data.gov.uk/id/local-authority/30UE,Service Management & Support,1009,Customer & Digital,Hire Of Transport,30028,Contrct Hire & Operating Lease,5018,Hire of Ford Transit tipper Reg WV65UBD for 6 week period at price quoted,21/12/2016,117596,394.29,Revenue,Northgate Vehicle Hire (NW) Ltd,17360
Chorley Borough Council,http://statistics.data.gov.uk/id/local-authority/30UE,Service Management & Support,1009,Customer & Digital,Hire Of Transport,30028,Contrct Hire & Operating Lease,5018,Hire of Ford Transit tipper Reg WU65KZZ for 6 week period at price quoted,21/12/2016,117596,394.29,Revenue,Northgate Vehicle Hire (NW) Ltd,17360
Chorley Borough Council,http://statistics.data.gov.uk/id/local-authority/30UE,Service Management & Support,1009,Customer & Digital,Hire Of Transport,30028,Contrct Hire & Operating Lease,5018,Hire of Ford Transit tipper Reg ND63YEG for 6 week period at price quoted,21/12/2016,117596,394.29,Revenue,Northgate Vehicle Hire (NW) Ltd,17360
Chorley Borough Council,http://statistics.data.gov.uk/id/local-authority/30UE,Democratic Represent and  Mgnt,1007,Customer & Digital,Processional Routes,40177,Miscellaneous Expenses,5034,"Hire of large 4 door black for 3 days as discussed with NAME REDACTED (Mondeo size) 3 day period , 08:00 11th Nov to 08:00",21/12/2016,117596,129.98,Revenue,Northgate Vehicle Hire (NW) Ltd,17360
Chorley Borough Council,http://statistics.data.gov.uk/id/local-authority/30UE,Unapportionable Central OHeads,1009,Policy & Governance,Miscellaneous Expenses,40200,Miscellaneous Expenses,5034,Supply of portable toilets for the Astley Bonfire 2016,07/12/2016,117432,500.00,Revenue,Northwest Portables,74432
Chorley Borough Council,http://statistics.data.gov.uk/id/local-authority/30UE,Parking Services,1066,Business Development & Growth,Electricity,20013,Energy Costs,5006,car parks,21/12/2016,117701,-18.16,Revenue,Npower Commercial Gas,16814
Chorley Borough Council,http://statistics.data.gov.uk/id/local-authority/30UE,Parking Services,1066,Business Development & Growth,Electricity,20013,Energy Costs,5006,pay and display,21/12/2016,117701,97.97,Revenue,Npower Commercial Gas,16814
Chorley Borough Council,http://statistics.data.gov.uk/id/local-authority/30UE,Central Support Services,1009,Business Development & Growth,Electricity,20013,Energy Costs,5006,cctv,21/12/2016,117701,242.35,Revenue,Npower Commercial Gas,16814
Chorley Borough Council,http://statistics.data.gov.uk/id/local-authority/30UE,Democratic Represent and  Mgnt,1007,Business Development & Growth,Electricity,20013,Energy Costs,5006,tatton rec,21/12/2016,117747,17.46,Revenue,Npower Commercial Gas,16814
Chorley Borough Council,http://statistics.data.gov.uk/id/local-authority/30UE,Democratic Represent and  Mgnt,1007,Business Development & Growth,Electricity,20013,Energy Costs,5006,astley hall,21/12/2016,117747,260.26,Revenue,Npower Commercial Gas,16814
Chorley Borough Council,http://statistics.data.gov.uk/id/local-authority/30UE,Community Development,1097,Business Development & Growth,Electricity,20013,Energy Costs,5006,ADDRESS REDACTED,21/12/2016,117747,109.99,Revenue,Npower Commercial Gas,16814
Chorley Borough Council,http://statistics.data.gov.uk/id/local-authority/30UE,Democratic Represent and  Mgnt,1007,Business Development & Growth,Electricity,20013,Energy Costs,5006,astley hall coach house,21/12/2016,117747,"2,669.14",Revenue,Npower Commercial Gas,16814
Chorley Borough Council,http://statistics.data.gov.uk/id/local-authority/30UE,Democratic Represent and  Mgnt,1007,Business Development & Growth,Electricity,20013,Energy Costs,5006,astley park changing rooms,21/12/2016,117747,739.64,Revenue,Npower Commercial Gas,16814
Chorley Borough Council,http://statistics.data.gov.uk/id/local-authority/30UE,Economic Development,1096,Business Development & Growth,Electricity,20013,Energy Costs,5006,market compactor,21/12/2016,117747,365.07,Revenue,Npower Commercial Gas,16814
Chorley Borough Council,http://statistics.data.gov.uk/id/local-authority/30UE,Unapportionable Central OHeads,1009,Business Development & Growth,Electricity,20013,Energy Costs,5006,union street,21/12/2016,117747,"3,140.77",Revenue,Npower Commercial Gas,16814
Chorley Borough Council,http://statistics.data.gov.uk/id/local-authority/30UE,Unapportionable Central OHeads,1009,Business Development & Growth,Electricity,20013,Energy Costs,5006,bengal street,21/12/2016,117747,821.45,Revenue,Npower Commercial Gas,16814
Chorley Borough Council,http://statistics.data.gov.uk/id/local-authority/30UE,Unapportionable Central OHeads,1009,Business Development & Growth,Electricity,20013,Energy Costs,5006,town hall,21/12/2016,117747,"2,311.20",Revenue,Npower Commercial Gas,16814
Chorley Borough Council,http://statistics.data.gov.uk/id/local-authority/30UE,Homelessness,1075,Business Development & Growth,Electricity,20013,Energy Costs,5006,cotswold hosue,21/12/2016,117747,649.37,Revenue,Npower Commercial Gas,16814
Chorley Borough Council,http://statistics.data.gov.uk/id/local-authority/30UE,Democratic Represent and  Mgnt,1007,Business Development & Growth,Electricity,20013,Energy Costs,5006,tunley holme,21/12/2016,117747,58.51,Revenue,Npower Commercial Gas,16814
Chorley Borough Council,http://statistics.data.gov.uk/id/local-authority/30UE,Democratic Represent and  Mgnt,1007,Business Development & Growth,Electricity,20013,Energy Costs,5006,tunley holme,21/12/2016,117747,57.94,Revenue,Npower Commercial Gas,16814
Chorley Borough Council,http://statistics.data.gov.uk/id/local-authority/30UE,Democratic Represent and  Mgnt,1007,Business Development & Growth,Electricity,20013,Energy Costs,5006,tunley holme,21/12/2016,117747,26.22,Revenue,Npower Commercial Gas,16814
Chorley Borough Council,http://statistics.data.gov.uk/id/local-authority/30UE,Democratic Represent and  Mgnt,1007,Business Development & Growth,Electricity,20013,Energy Costs,5006,tunley holme,21/12/2016,117747,56.83,Revenue,Npower Commercial Gas,16814
Chorley Borough Council,http://statistics.data.gov.uk/id/local-authority/30UE,Democratic Represent and  Mgnt,1007,Business Development & Growth,Electricity,20013,Energy Costs,5006,tunley holme,21/12/2016,117747,-81.99,Revenue,Npower Commercial Gas,16814
Chorley Borough Council,http://statistics.data.gov.uk/id/local-authority/30UE,Democratic Represent and  Mgnt,1007,Business Development & Growth,Electricity,20013,Energy Costs,5006,tunley holme,21/12/2016,117747,-78.68,Revenue,Npower Commercial Gas,16814
Chorley Borough Council,http://statistics.data.gov.uk/id/local-authority/30UE,Democratic Represent and  Mgnt,1007,Business Development & Growth,Electricity,20013,Energy Costs,5006,tunley holme,21/12/2016,117747,-81.48,Revenue,Npower Commercial Gas,16814
Chorley Borough Council,http://statistics.data.gov.uk/id/local-authority/30UE,Business Support,1095,Business Development & Growth,Electricity,20013,Energy Costs,5006,ADDRESS REDACTED,21/12/2016,117747,33.29,Revenue,Npower Commercial Gas,16814
Chorley Borough Council,http://statistics.data.gov.uk/id/local-authority/30UE,Parking Services,1066,Business Development & Growth,External Contractors,50008,Private Contractors,5042,"Provision of off street car park enforcement, cash collection, cash counting facilities and third party bulk cash collections ",07/12/2016,117440,"4,052.83",Revenue,NSL Limited,67253
Chorley Borough Council,http://statistics.data.gov.uk/id/local-authority/30UE,Unapportionable Central OHeads,1009,Policy & Governance,Corp Training Organisational Development,17006,Indirect Employee Expenses,5002,Coaching sessions for CB x 3 plus travel expenses,21/12/2016,117844,"1,411.20",Revenue,Nwlaeo,17571
Chorley Borough Council,http://statistics.data.gov.uk/id/local-authority/30UE,Capital,Capital,Early Intervention,Main Contractor,3007,Capital Expenditure,Capital,Phase 6 Works at Cotswold,21/12/2016,117378,"89,947.09",Capital,P J Services (Bolton) Ltd,62962
Chorley Borough Council,http://statistics.data.gov.uk/id/local-authority/30UE,Corporate Management,1008,Customer & Digital,Survey Expenses,40069,Services,5027,Pell Frischmann property level resilience grant survey fees,16/09/2016,115816,882.00,Revenue,Pell Frischmann Consultants Ltd,76097
Chorley Borough Council,http://statistics.data.gov.uk/id/local-authority/30UE,Corporate Management,1008,Customer & Digital,Survey Expenses,40069,Services,5027,Pell Frischmann property level resilience grant survey fees,21/12/2016,117754,882.00,Revenue,Pell Frischmann Consultants Ltd,76097
Chorley Borough Council,http://statistics.data.gov.uk/id/local-authority/30UE,Corporate Management,1008,Customer & Digital,Survey Expenses,40069,Services,5027,survey fees,21/12/2016,117836,"1,911.00",Revenue,Pell Frischmann Consultants Ltd,76097
Chorley Borough Council,http://statistics.data.gov.uk/id/local-authority/30UE,Unapportionable Central OHeads,1009,Business Development & Growth,General Repairs - Reactive,20004,Repairs Maintenance & Alts,5005,Blanket reactive works for 2017 (fire extinguishers etc.).,21/12/2016,117365,297.63,Revenue,Pennine Fire & Safety Limited,69643
Chorley Borough Council,http://statistics.data.gov.uk/id/local-authority/30UE,Unapportionable Central OHeads,1009,Business Development & Growth,General Repairs - Reactive,20004,Repairs Maintenance & Alts,5005,Blanket order for Reactive works until end of March 2017.,21/12/2016,117366,380.61,Revenue,Pennine Fire & Safety Limited,69643
Chorley Borough Council,http://statistics.data.gov.uk/id/local-authority/30UE,Service Management & Support,1009,Customer & Digital,Tools & Equipment - Purchase,40003,"Equipment, Furniture & Materia",5023,3.5 Tonne Crew cab tipper with 3.3T tow capacity as per your quote in accordance with the provisions of the RM1070 Vehicle,23/12/2016,117330,"24,252.64",Revenue,Pentagon Corporate Fleet,69387
Chorley Borough Council,http://statistics.data.gov.uk/id/local-authority/30UE,Service Management & Support,1009,Customer & Digital,Tools & Equipment - Purchase,40003,"Equipment, Furniture & Materia",5023,VED,23/12/2016,117330,285.00,Revenue,Pentagon Corporate Fleet,69387
Chorley Borough Council,http://statistics.data.gov.uk/id/local-authority/30UE,Service Management & Support,1009,Customer & Digital,Tools & Equipment - Purchase,40003,"Equipment, Furniture & Materia",5023,3.5 Tonne Crew cab tipper with 3.3T tow capacity as per your quote in accordance with the provisions of the RM1070 Vehicle,23/12/2016,117331,"24,252.64",Revenue,Pentagon Corporate Fleet,69387
Chorley Borough Council,http://statistics.data.gov.uk/id/local-authority/30UE,Service Management & Support,1009,Customer & Digital,Tools & Equipment - Purchase,40003,"Equipment, Furniture & Materia",5023,VED,23/12/2016,117331,285.00,Revenue,Pentagon Corporate Fleet,69387
Chorley Borough Council,http://statistics.data.gov.uk/id/local-authority/30UE,Service Management & Support,1009,Customer & Digital,Tools & Equipment - Purchase,40003,"Equipment, Furniture & Materia",5023,3.5 Tonne Crew cab tipper with 3.3T tow capacity as per your quote in accordance with the provisions of the RM1070 Vehicle,23/12/2016,117332,"24,252.64",Revenue,Pentagon Corporate Fleet,69387
Chorley Borough Council,http://statistics.data.gov.uk/id/local-authority/30UE,Service Management & Support,1009,Customer & Digital,Tools & Equipment - Purchase,40003,"Equipment, Furniture & Materia",5023,ved,23/12/2016,117332,285.00,Revenue,Pentagon Corporate Fleet,69387
Chorley Borough Council,http://statistics.data.gov.uk/id/local-authority/30UE,Service Management & Support,1009,Customer & Digital,Tools & Equipment - Purchase,40003,"Equipment, Furniture & Materia",5023,3.5Tonne Single Cab tipper with 3.3Tonne towing capacity in accordance with the provision of the RM1070 Vehicle Purchase,23/12/2016,117333,"23,933.79",Revenue,Pentagon Corporate Fleet,69387
Chorley Borough Council,http://statistics.data.gov.uk/id/local-authority/30UE,Service Management & Support,1009,Customer & Digital,Tools & Equipment - Purchase,40003,"Equipment, Furniture & Materia",5023,VED,23/12/2016,117333,285.00,Revenue,Pentagon Corporate Fleet,69387
Chorley Borough Council,http://statistics.data.gov.uk/id/local-authority/30UE,Service Management & Support,1009,Customer & Digital,Tools & Equipment - Purchase,40003,"Equipment, Furniture & Materia",5023,3.5 Tonne Crew cab tipper with 3.3T tow capacity as per your quote in accordance with the provisions of the RM1070 Vehicle,23/12/2016,117334,"24,252.64",Revenue,Pentagon Corporate Fleet,69387
Chorley Borough Council,http://statistics.data.gov.uk/id/local-authority/30UE,Service Management & Support,1009,Customer & Digital,Tools & Equipment - Purchase,40003,"Equipment, Furniture & Materia",5023,VED,23/12/2016,117334,285.00,Revenue,Pentagon Corporate Fleet,69387
Chorley Borough Council,http://statistics.data.gov.uk/id/local-authority/30UE,Service Management & Support,1009,Customer & Digital,Tools & Equipment - Purchase,40003,"Equipment, Furniture & Materia",5023,3.5Tonne Crewcab tipper with 2.3Tonne towing capacity in accordance with the provision of the RM1070 Vehicle Purchase,23/12/2016,117335,"24,252.64",Revenue,Pentagon Corporate Fleet,69387
Chorley Borough Council,http://statistics.data.gov.uk/id/local-authority/30UE,Service Management & Support,1009,Customer & Digital,Tools & Equipment - Purchase,40003,"Equipment, Furniture & Materia",5023,VED,23/12/2016,117335,285.00,Revenue,Pentagon Corporate Fleet,69387
Chorley Borough Council,http://statistics.data.gov.uk/id/local-authority/30UE,Service Management & Support,1009,Customer & Digital,Tools & Equipment - Purchase,40003,"Equipment, Furniture & Materia",5023,3.5Tonne Crewcab tipper with 2.3Tonne towing capacity in accordance with the provision of the RM1070 Vehicle Purchase,23/12/2016,117336,"24,252.64",Revenue,Pentagon Corporate Fleet,69387
Chorley Borough Council,http://statistics.data.gov.uk/id/local-authority/30UE,Service Management & Support,1009,Customer & Digital,Tools & Equipment - Purchase,40003,"Equipment, Furniture & Materia",5023,VED,23/12/2016,117336,285.00,Revenue,Pentagon Corporate Fleet,69387
Chorley Borough Council,http://statistics.data.gov.uk/id/local-authority/30UE,Service Management & Support,1009,Customer & Digital,Tools & Equipment - Purchase,40003,"Equipment, Furniture & Materia",5023,3.5Tonne Crewcab tipper with 2.3Tonne towing capacity in accordance with the provision of the RM1070 Vehicle Purchase,23/12/2016,117337,"24,252.64",Revenue,Pentagon Corporate Fleet,69387
Chorley Borough Council,http://statistics.data.gov.uk/id/local-authority/30UE,Service Management & Support,1009,Customer & Digital,Tools & Equipment - Purchase,40003,"Equipment, Furniture & Materia",5023,ved,23/12/2016,117337,285.00,Revenue,Pentagon Corporate Fleet,69387
Chorley Borough Council,http://statistics.data.gov.uk/id/local-authority/30UE,Central Support Services,1009,Early Intervention,External Contractor,40198,Miscellaneous Expenses,5034,Pest control duties for 2016/17,07/12/2016,117437,340.00,Revenue,Peter L Johnson,16727
Chorley Borough Council,http://statistics.data.gov.uk/id/local-authority/30UE,Central Support Services,1009,Early Intervention,External Contractor,40198,Miscellaneous Expenses,5034,Pest control duties for 2016/17,09/12/2016,117579,340.00,Revenue,Peter L Johnson,16727
Chorley Borough Council,http://statistics.data.gov.uk/id/local-authority/30UE,Central Support Services,1009,Early Intervention,External Contractor,40198,Miscellaneous Expenses,5034,Pest control duties for 2016/17,09/12/2016,117580,340.00,Revenue,Peter L Johnson,16727
Chorley Borough Council,http://statistics.data.gov.uk/id/local-authority/30UE,Central Support Services,1009,Early Intervention,External Contractor,40198,Miscellaneous Expenses,5034,Pest control duties for 2016/17,09/12/2016,117581,340.00,Revenue,Peter L Johnson,16727
Chorley Borough Council,http://statistics.data.gov.uk/id/local-authority/30UE,Central Support Services,1009,Early Intervention,External Contractor,40198,Miscellaneous Expenses,5034,Pest control duties for 2016/17,09/12/2016,117582,340.00,Revenue,Peter L Johnson,16727
Chorley Borough Council,http://statistics.data.gov.uk/id/local-authority/30UE,Business Support,1095,Chief Executive,Miscellaneous Expenses,40200,Miscellaneous Expenses,5034,botany bay,21/12/2016,117823,"16,498.50",Revenue,Planit IE Limited,62532
Chorley Borough Council,http://statistics.data.gov.uk/id/local-authority/30UE,Precepts and Collection Fund,Precepts,Policy & Governance,LPA Precept,2010,Precepts & Collection Fund,Precept,ctax,20/12/2016,117420,"577,515.00",Revenue,Police & Crime Commissioner,17438
Chorley Borough Council,http://statistics.data.gov.uk/id/local-authority/30UE,Parking Services,1066,Business Development & Growth,Signs:Provision & Maintenance,20065,Grounds Maintenance Costs,5013,Please provide works as per quote ref 8120/1 Hollinshead Street Car Park 1. Provide Aluminium Panel with twin sign rails,02/12/2016,117308,527.75,Revenue,Poppy Signs Ltd,21898
Chorley Borough Council,http://statistics.data.gov.uk/id/local-authority/30UE,Unapportionable Central OHeads,1009,Policy & Governance,Exhibitions & Special Events,40158,Miscellaneous Expenses,5034,2 x Christmas banners plus 10 x A3 correx boards for land train,02/12/2016,117407,298.33,Revenue,Poppy Signs Ltd,21898
Chorley Borough Council,http://statistics.data.gov.uk/id/local-authority/30UE,Unapportionable Central OHeads,1009,Policy & Governance,Exhibitions & Special Events,40158,Miscellaneous Expenses,5034,Advertising boards to go on the Santa Express incl fitting,09/12/2016,117555,266.19,Revenue,Poppy Signs Ltd,21898
Chorley Borough Council,http://statistics.data.gov.uk/id/local-authority/30UE,Unapportionable Central OHeads,1009,Policy & Governance,Exhibitions & Special Events,40158,Miscellaneous Expenses,5034,Signage for the ice rink and Winter Wonderland,14/12/2016,117755,864.87,Revenue,Poppy Signs Ltd,21898
Chorley Borough Council,http://statistics.data.gov.uk/id/local-authority/30UE,Unapportionable Central OHeads,1009,Policy & Governance,HR Approved Training Expenses,17001,Indirect Employee Expenses,5002,Flair Programme,07/12/2016,117464,"2,675.00",Revenue,Potential Unearthed,22243
Chorley Borough Council,http://statistics.data.gov.uk/id/local-authority/30UE,Unapportionable Central OHeads,1009,Policy & Governance,Refreshments,40036,Catering,5024,Sanitisation of water cooler machines and supply of cups and bottled water for the Month of November 2016,14/12/2016,117766,558.00,Revenue,Pressure Coolers Ltd T/A Maestro International Ltd,19767
Chorley Borough Council,http://statistics.data.gov.uk/id/local-authority/30UE,Elections,1012,Policy & Governance,Postages,40082,Communication and Computing,5028,2nd ITR mailings,21/12/2016,117818,408.01,Revenue,Print Image Facilities LLP,57870
Chorley Borough Council,http://statistics.data.gov.uk/id/local-authority/30UE,Elections,1012,Policy & Governance,Printing,40043,"Printing, Stationery & General",5026,2nd run of itr`s for annual canvass plus outer envelopes,14/12/2016,117725,"2,065.38",Revenue,Print Image Network,21171
Chorley Borough Council,http://statistics.data.gov.uk/id/local-authority/30UE,Interest Payable on Debt,1020,Policy & Governance,Interest Payable,9009,Interest Payments,5067,interest,20/12/2016,117789,"195,077.24",Revenue,Public Works Loans Board,21480
Chorley Borough Council,http://statistics.data.gov.uk/id/local-authority/30UE,Business Support,1095,Business Development & Growth,Promotional Expenses,40159,Miscellaneous Expenses,5034,Branding development work for Digital Office Park.,21/12/2016,117896,"1,500.00",Revenue,R D O`Donnell,76439
Chorley Borough Council,http://statistics.data.gov.uk/id/local-authority/30UE,Business Support,1095,Business Development & Growth,Grants To Other Organisations,40127,Grants and Subscriptions,5031,Grant,02/12/2016,117376,146.25,Revenue,NAME REDACTED,76346
Chorley Borough Council,http://statistics.data.gov.uk/id/local-authority/30UE,Business Support,1095,Business Development & Growth,Grants To Other Organisations,40127,Grants and Subscriptions,5031,Grant,02/12/2016,117376,795.00,Revenue,NAME REDACTED,76346
Chorley Borough Council,http://statistics.data.gov.uk/id/local-authority/30UE,Unapportionable Central OHeads,1009,Policy & Governance,Exhibitions & Special Events,40158,Miscellaneous Expenses,5034,Provision of two donkeys and staff for three Saturdays and three Sundays in December 2016,14/12/2016,117551,700.00,Revenue,Realdonkeys,69739
Chorley Borough Council,http://statistics.data.gov.uk/id/local-authority/30UE,Unapportionable Central OHeads,1009,Policy & Governance,Exhibitions & Special Events,40158,Miscellaneous Expenses,5034,Provision of two donkeys and staff for three Saturdays and three Sundays in December 2016,21/12/2016,117736,700.00,Revenue,Realdonkeys,69739
Chorley Borough Council,http://statistics.data.gov.uk/id/local-authority/30UE,Unapportionable Central OHeads,1009,Policy & Governance,Exhibitions & Special Events,40158,Miscellaneous Expenses,5034,Provision of two donkeys and staff for three Saturdays and three Sundays in December 2016,21/12/2016,117858,700.00,Revenue,Realdonkeys,69739
Chorley Borough Council,http://statistics.data.gov.uk/id/local-authority/30UE,Capital,Capital,Customer & Digital,Main Contractor,3007,Capital Expenditure,Capital,Design services relating to a new pond including: An initial visit to the site Organising trial pits and permeability tests,14/12/2016,116652,625.00,Capital,Reid Jones Partnership Ltd,68567
Chorley Borough Council,http://statistics.data.gov.uk/id/local-authority/30UE,Control Accounts,Control,Policy & Governance,General Balances,100,Balance Sheet,Balance,childcare vouchers,20/12/2016,117527,"4,955.00",Revenue,Reward Gateway (UK) Ltd,66814
Chorley Borough Council,http://statistics.data.gov.uk/id/local-authority/30UE,Non Domestic Rates Redistribut,,Policy & Governance,Tariff to Business Rates Pool,49002,Expenditure not in NCOS,,business rates pool,20/12/2016,117232,"628,533.00",Revenue,Ribble Valley Borough Council,21100
Chorley Borough Council,http://statistics.data.gov.uk/id/local-authority/30UE,Corporate Management,1008,Policy & Governance,Other Fees,40212,Miscellaneous Expenses,5034,annual charge,21/12/2016,117529,"2,000.00",Revenue,Ribble Valley Borough Council,21100
Chorley Borough Council,http://statistics.data.gov.uk/id/local-authority/30UE,Corporate Management,1008,Customer & Digital,Other Contributions,40145,Grants and Subscriptions,5031,ADDRESS REDACTED,21/12/2016,117919,610.00,Revenue,NAME REDACTED,74782
Chorley Borough Council,http://statistics.data.gov.uk/id/local-authority/30UE,Central Support Services,1009,Business Development & Growth,Professional Fees,14011,Direct Employee Expenses,5001,subscription fees,21/12/2016,117815,512.00,Revenue,RICS Business Services Ltd,17439
Chorley Borough Council,http://statistics.data.gov.uk/id/local-authority/30UE,Capital,Capital,Business Development & Growth,Surveyors Fees,3021,Capital Expenditure,Capital,Provision of Quantity Surveying Services in accordance with tender dated 30.9.2016.,21/12/2016,117906,"4,125.00",Capital,Rider Levett Bucknall,67527
Chorley Borough Council,http://statistics.data.gov.uk/id/local-authority/30UE,Capital,Capital,Business Development & Growth,Surveyors Fees,3021,Capital Expenditure,Capital,Surveyor Fees,21/12/2016,117906,"1,375.00",Capital,Rider Levett Bucknall,67527
Chorley Borough Council,http://statistics.data.gov.uk/id/local-authority/30UE,Corporate Management,1008,Customer & Digital,Other Contributions,40145,Grants and Subscriptions,5031,ADDRESS REDACTED,21/12/2016,117920,"1,446.44",Revenue,NAME REDACTED,74825
Chorley Borough Council,http://statistics.data.gov.uk/id/local-authority/30UE,Unapportionable Central OHeads,1009,Policy & Governance,Exhibitions & Special Events,40158,Miscellaneous Expenses,5034,Father Christmas for 6 days in December 2016,21/12/2016,117852,360.00,Revenue,Robert Mawbey,57306
Chorley Borough Council,http://statistics.data.gov.uk/id/local-authority/30UE,Corporate Management,1008,Customer & Digital,Grant Of Right Of Burial Fees,60077,Customer & Client Receipts,5064,refund for grave,21/12/2016,117876,927.20,Revenue,NAME REDACTED,76435
Chorley Borough Council,http://statistics.data.gov.uk/id/local-authority/30UE,Corporate Management,1008,Customer & Digital,Other Contributions,40145,Grants and Subscriptions,5031,ADDRESS REDACTED,15/12/2016,117793,"4,706.00",Revenue,NAME REDACTED,73874
Chorley Borough Council,http://statistics.data.gov.uk/id/local-authority/30UE,Elections,1012,Policy & Governance,Postages,40082,Communication and Computing,5028,Business reply from October 2016 - March 2017   Licences number RRHA-KZCB-CAXA,09/12/2016,117601,685.70,Revenue,Royal Mail Group Plc,17522
Chorley Borough Council,http://statistics.data.gov.uk/id/local-authority/30UE,Business Support,1095,Business Development & Growth,Grants To Other Organisations,40127,Grants and Subscriptions,5031,shop front grant,21/12/2016,117791,"8,812.50",Revenue,S A Estates,76424
Chorley Borough Council,http://statistics.data.gov.uk/id/local-authority/30UE,Service Management & Support,1009,Customer & Digital,Vehicle Maintenance,30045,Direct Transport Costs,5016,Supply and install reflective stickers to the rear doors on PL16UUF as per your quote number 40071,21/12/2016,117572,181.60,Revenue,Sam Bird Motorbodies,20116
Chorley Borough Council,http://statistics.data.gov.uk/id/local-authority/30UE,Service Management & Support,1009,Customer & Digital,Vehicle Maintenance,30045,Direct Transport Costs,5016,Supply and install reflective stickers to the rear doors on PL16UUD as per your quote number 40071,21/12/2016,117572,181.60,Revenue,Sam Bird Motorbodies,20116
Chorley Borough Council,http://statistics.data.gov.uk/id/local-authority/30UE,Service Management & Support,1009,Customer & Digital,Vehicle Maintenance,30045,Direct Transport Costs,5016,Supply and install reflective stickers to the rear doors on PN15YWB as per your quote number 40071,21/12/2016,117572,181.60,Revenue,Sam Bird Motorbodies,20116
Chorley Borough Council,http://statistics.data.gov.uk/id/local-authority/30UE,Service Management & Support,1009,Customer & Digital,Vehicle Maintenance,30045,Direct Transport Costs,5016,Supply and install reflective stickers to the rear doors on PO15VHD as per your quote number 40071,21/12/2016,117572,181.60,Revenue,Sam Bird Motorbodies,20116
Chorley Borough Council,http://statistics.data.gov.uk/id/local-authority/30UE,Service Management & Support,1009,Customer & Digital,Vehicle Maintenance,30045,Direct Transport Costs,5016,Supply and install reflective stickers to the rear doors on PO15VHE as per your quote number 40071,21/12/2016,117572,181.60,Revenue,Sam Bird Motorbodies,20116
Chorley Borough Council,http://statistics.data.gov.uk/id/local-authority/30UE,Service Management & Support,1009,Customer & Digital,Vehicle Maintenance,30045,Direct Transport Costs,5016,Supply and install reflective stickers to the rear doors on PO15VHE as per your quote number 40071,21/12/2016,117572,181.60,Revenue,Sam Bird Motorbodies,20116
Chorley Borough Council,http://statistics.data.gov.uk/id/local-authority/30UE,Service Management & Support,1009,Customer & Digital,Vehicle Maintenance,30045,Direct Transport Costs,5016,Supply and install reflective stickers to the rear doors on PO15VFZ as per your quote number 40071,21/12/2016,117572,181.60,Revenue,Sam Bird Motorbodies,20116
Chorley Borough Council,http://statistics.data.gov.uk/id/local-authority/30UE,Service Management & Support,1009,Customer & Digital,Vehicle Maintenance,30045,Direct Transport Costs,5016,Supply and install reflective stickers to the rear doors on PL16VHF as per your quote number 40071,21/12/2016,117572,181.60,Revenue,Sam Bird Motorbodies,20116
Chorley Borough Council,http://statistics.data.gov.uk/id/local-authority/30UE,Service Management & Support,1009,Customer & Digital,Vehicle Maintenance,30045,Direct Transport Costs,5016,Supply and install reflective stickers to the rear doors on PK15UPE as per your quote number 40071,21/12/2016,117572,181.60,Revenue,Sam Bird Motorbodies,20116
Chorley Borough Council,http://statistics.data.gov.uk/id/local-authority/30UE,Service Management & Support,1009,Customer & Digital,Vehicle Maintenance,30045,Direct Transport Costs,5016,Supply and install reflective stickers to the rear doors on PK15UOA as per your quote number 40071,21/12/2016,117572,181.60,Revenue,Sam Bird Motorbodies,20116
Chorley Borough Council,http://statistics.data.gov.uk/id/local-authority/30UE,Service Management & Support,1009,Customer & Digital,Diesel/Derv,30007,Direct Transport Costs,5016,Supply 2000 litres of red diesel delivered to Bengal St depot as per quotation,14/12/2016,117750,998.00,Revenue,Samuel Cooke & Co Ltd,17173
Chorley Borough Council,http://statistics.data.gov.uk/id/local-authority/30UE,Service Management & Support,1009,Customer & Digital,Diesel/Derv,30007,Direct Transport Costs,5016,Supply 8000 litres of road diesel delivered to Bengal St depot as per your quote via the chest,14/12/2016,117751,"7,695.19",Revenue,Samuel Cooke & Co Ltd,17173
Chorley Borough Council,http://statistics.data.gov.uk/id/local-authority/30UE,Central Support Services,1009,Customer & Digital,Computer Software-Maintenance,40107,Communication and Computing,5028,Sophos antivirus renewal Extension of existing product for 3 year term starting 1st December 2016 to run to 31/03/2020,21/12/2016,117897,"3,899.00",Revenue,Secon Solutions,21695
Chorley Borough Council,http://statistics.data.gov.uk/id/local-authority/30UE,Homelessness,1075,Early Intervention,External Contractor,40198,Miscellaneous Expenses,5034,"Concierge Service at Cotswold Supported Housing, Cotswold Road, Chorley, Lancashire, PR7 3HW. for the period April 2016",15/12/2016,117738,"2,249.00",Revenue,Sector Security Services,19269
Chorley Borough Council,http://statistics.data.gov.uk/id/local-authority/30UE,Business Support,1095,Business Development & Growth,Promotional Expenses,40159,Miscellaneous Expenses,5034,Marketing Plan - Chorley Digital Office Park,21/12/2016,117890,"2,450.00",Revenue,Sharp Marketing Consultancy,21568
Chorley Borough Council,http://statistics.data.gov.uk/id/local-authority/30UE,Democratic Represent and  Mgnt,1007,Policy & Governance,Exhibitions & Special Events,40158,Miscellaneous Expenses,5034,"Performances x 3 at Astley Hall for Lancashire Day, 26th Nov.",21/12/2016,117854,600.00,Revenue,Sid Calderbank,76408
Chorley Borough Council,http://statistics.data.gov.uk/id/local-authority/30UE,Corporate Management,1008,Customer & Digital,Miscellaneous Expenses,40200,Miscellaneous Expenses,5034,Community flood store equipment for Whittle-le-Woods: 2x   Camden Black Wheelbarrow 85 Litre  Product Code: CWCAMBLK ,07/12/2016,117438,397.10,Revenue,Smart Image Workwear,21064
Chorley Borough Council,http://statistics.data.gov.uk/id/local-authority/30UE,Service Management & Support,1009,Customer & Digital,Protective Clothing,40040,"Clothing, Uniforms and Laundry",5025,"yellow PU waterproof unlined outer jacket, supertouch 35B4.  c/w Chorley Council full colour logo screen printed front and back.  ",21/12/2016,117840,111.25,Revenue,Smart Image Workwear,21064
Chorley Borough Council,http://statistics.data.gov.uk/id/local-authority/30UE,Service Management & Support,1009,Customer & Digital,Protective Clothing,40040,"Clothing, Uniforms and Laundry",5025,"High Vis Yellow PU waterproof unlined outer jacket, supertouch 35B4.  c/w Chorley Council full colour logo screen printed front ",21/12/2016,117840,111.25,Revenue,Smart Image Workwear,21064
Chorley Borough Council,http://statistics.data.gov.uk/id/local-authority/30UE,Service Management & Support,1009,Customer & Digital,Protective Clothing,40040,"Clothing, Uniforms and Laundry",5025,"High Vis Yellow PU waterproof unlined outer jacket, supertouch 35B4.  c/w Chorley Council full colour logo screen printed front",21/12/2016,117840,111.25,Revenue,Smart Image Workwear,21064
Chorley Borough Council,http://statistics.data.gov.uk/id/local-authority/30UE,Service Management & Support,1009,Customer & Digital,Protective Clothing,40040,"Clothing, Uniforms and Laundry",5025,"High Viz Yellow waterproof trousers, windproof, breathable and weatherproof.  Size = Medium.  Product Code = CBC33",21/12/2016,117840,12.15,Revenue,Smart Image Workwear,21064
Chorley Borough Council,http://statistics.data.gov.uk/id/local-authority/30UE,Service Management & Support,1009,Customer & Digital,Protective Clothing,40040,"Clothing, Uniforms and Laundry",5025,"High Viz Yellow waterproof trousers, windproof, breathable and weatherproof.  Size = Large.  Product Code = CBC33",21/12/2016,117840,12.15,Revenue,Smart Image Workwear,21064
Chorley Borough Council,http://statistics.data.gov.uk/id/local-authority/30UE,Service Management & Support,1009,Customer & Digital,Protective Clothing,40040,"Clothing, Uniforms and Laundry",5025,"High Viz Yellow waterproof trousers, windproof, breathable and weatherproof.  Size = X Large.  Product Code = CBC33",21/12/2016,117840,60.75,Revenue,Smart Image Workwear,21064
Chorley Borough Council,http://statistics.data.gov.uk/id/local-authority/30UE,Service Management & Support,1009,Customer & Digital,Protective Clothing,40040,"Clothing, Uniforms and Laundry",5025,"Hi Viz Yellow waistcoat HVWO3, c/w Chorley Council full colour logo screen printed front and back.  Size = Medium.  ",21/12/2016,117840,59.00,Revenue,Smart Image Workwear,21064
Chorley Borough Council,http://statistics.data.gov.uk/id/local-authority/30UE,Business Support,1095,Business Development & Growth,Miscellaneous Expenses,40200,Miscellaneous Expenses,5034,Architectural Services to develop the Digital Office Park at Euxton Lane to RIBA 3 Stage - Staged payments to be made,21/12/2016,117826,"1,350.00",Revenue,Spring Architects,75047
Chorley Borough Council,http://statistics.data.gov.uk/id/local-authority/30UE,Business Support,1095,Business Development & Growth,Miscellaneous Expenses,40200,Miscellaneous Expenses,5034,as above,21/12/2016,117826,46.20,Revenue,Spring Architects,75047
Chorley Borough Council,http://statistics.data.gov.uk/id/local-authority/30UE,Democratic Represent and  Mgnt,1007,Policy & Governance,Members Hospitality,40122,Expenses,5030,Buffet for medal presentation at the Town Hall on Friday 18th November 2016 for 70 people including 3 gluten free.,09/12/2016,117598,583.10,Revenue,St Catherine�s Social Enterprise Ltd,76345
Chorley Borough Council,http://statistics.data.gov.uk/id/local-authority/30UE,Unapportionable Central OHeads,1009,Business Development & Growth,General Repairs - Reactive,20004,Repairs Maintenance & Alts,5005,Blanket order for Reactive works from October 2016.,21/12/2016,117318,388.98,Revenue,Stringfellow Bldg Cntrctrs Ltd,17893
Chorley Borough Council,http://statistics.data.gov.uk/id/local-authority/30UE,Unapportionable Central OHeads,1009,Business Development & Growth,General Repairs - Reactive,20004,Repairs Maintenance & Alts,5005,Blanket order for Reactive works from October 2016.,21/12/2016,117320,371.61,Revenue,Stringfellow Bldg Cntrctrs Ltd,17893
Chorley Borough Council,http://statistics.data.gov.uk/id/local-authority/30UE,Unapportionable Central OHeads,1009,Business Development & Growth,General Repairs - Reactive,20004,Repairs Maintenance & Alts,5005,Blanket order for Reactive works from October 2016.,09/12/2016,117500,570.00,Revenue,Stringfellow Bldg Cntrctrs Ltd,17893
Chorley Borough Council,http://statistics.data.gov.uk/id/local-authority/30UE,Unapportionable Central OHeads,1009,Business Development & Growth,General Repairs - Reactive,20004,Repairs Maintenance & Alts,5005,Blanket order for Reactive works from October 2016.,22/12/2016,117680,480.00,Revenue,Stringfellow Bldg Cntrctrs Ltd,17893
Chorley Borough Council,http://statistics.data.gov.uk/id/local-authority/30UE,Unapportionable Central OHeads,1009,Business Development & Growth,General Repairs - Reactive,20004,Repairs Maintenance & Alts,5005,Blanket order for Reactive works from October 2016.,22/12/2016,117682,270.54,Revenue,Stringfellow Bldg Cntrctrs Ltd,17893
Chorley Borough Council,http://statistics.data.gov.uk/id/local-authority/30UE,Capital,Capital,Early Intervention,Grants,3002,Capital Expenditure,Capital,ADDRESS REDACTED,14/12/2016,117692,"3,720.00",Capital,Stringfellow Bldg Cntrctrs Ltd,17893
Chorley Borough Council,http://statistics.data.gov.uk/id/local-authority/30UE,Capital,Capital,Early Intervention,Grants,3002,Capital Expenditure,Capital,ADDRESS REDACTED,14/12/2016,117693,"2,500.00",Capital,Stringfellow Bldg Cntrctrs Ltd,17893
Chorley Borough Council,http://statistics.data.gov.uk/id/local-authority/30UE,Capital,Capital,Early Intervention,Grants,3002,Capital Expenditure,Capital,ADDRESS REDACTED,15/12/2016,117773,"5,530.00",Capital,Stringfellow Bldg Cntrctrs Ltd,17893
Chorley Borough Council,http://statistics.data.gov.uk/id/local-authority/30UE,Capital,Capital,Early Intervention,Grants,3002,Capital Expenditure,Capital,ADDRESS REDACTED,15/12/2016,117774,"3,720.00",Capital,Stringfellow Bldg Cntrctrs Ltd,17893
Chorley Borough Council,http://statistics.data.gov.uk/id/local-authority/30UE,Capital,Capital,Early Intervention,Grants,3002,Capital Expenditure,Capital,ADDRESS REDACTED,21/12/2016,117871,"3,971.00",Capital,Stringfellow Bldg Cntrctrs Ltd,17893
Chorley Borough Council,http://statistics.data.gov.uk/id/local-authority/30UE,Capital,Capital,Early Intervention,Grants,3002,Capital Expenditure,Capital,ADDRESS REDACTED,21/12/2016,117872,720.00,Capital,Stringfellow Bldg Cntrctrs Ltd,17893
Chorley Borough Council,http://statistics.data.gov.uk/id/local-authority/30UE,Capital,Capital,Early Intervention,Grants,3002,Capital Expenditure,Capital,ADDRESS REDACTED,21/12/2016,117873,"3,250.00",Capital,Stringfellow Bldg Cntrctrs Ltd,17893
Chorley Borough Council,http://statistics.data.gov.uk/id/local-authority/30UE,Corporate Management,1008,Customer & Digital,Other Contributions,40145,Grants and Subscriptions,5031,ADDRESS REDACTED,15/12/2016,117794,"4,706.00",Revenue,NAME REDACTED,73769
Chorley Borough Council,http://statistics.data.gov.uk/id/local-authority/30UE,Unapportionable Central OHeads,1009,Policy & Governance,Cleaning Materials,40019,"Equipment, Furniture & Materia",5023,05/35SSMJ Mini Jumbo QTY 20 packs @ 11.31 per box,07/12/2016,115622,133.00,Revenue,Swiftkleen Ltd,17933
Chorley Borough Council,http://statistics.data.gov.uk/id/local-authority/30UE,Unapportionable Central OHeads,1009,Policy & Governance,Cleaning Materials,40019,"Equipment, Furniture & Materia",5023,LTR soft toilet rolls QTY 20 packs at 7.83 per box,07/12/2016,115622,117.40,Revenue,Swiftkleen Ltd,17933
Chorley Borough Council,http://statistics.data.gov.uk/id/local-authority/30UE,Unapportionable Central OHeads,1009,Policy & Governance,Cleaning Materials,40019,"Equipment, Furniture & Materia",5023,Paper towels 3600 green 1 fold QTY 20 boxes 10.10 per box,07/12/2016,115622,240.16,Revenue,Swiftkleen Ltd,17933
Chorley Borough Council,http://statistics.data.gov.uk/id/local-authority/30UE,Unapportionable Central OHeads,1009,Policy & Governance,Cleaning Materials,40019,"Equipment, Furniture & Materia",5023,TB Atlas thick bleach 5ltr QTY 4 boxes @ 2.25 per box,07/12/2016,115622,6.20,Revenue,Swiftkleen Ltd,17933
Chorley Borough Council,http://statistics.data.gov.uk/id/local-authority/30UE,Unapportionable Central OHeads,1009,Policy & Governance,Cleaning Materials,40019,"Equipment, Furniture & Materia",5023,CAF Spray Air fresh QTY 12 @0.70 each,07/12/2016,115622,7.20,Revenue,Swiftkleen Ltd,17933
Chorley Borough Council,http://statistics.data.gov.uk/id/local-authority/30UE,Unapportionable Central OHeads,1009,Policy & Governance,Cleaning Materials,40019,"Equipment, Furniture & Materia",5023,SAF Stand up air freshener QTY 4 @ 1.19 each,07/12/2016,115622,1.12,Revenue,Swiftkleen Ltd,17933
Chorley Borough Council,http://statistics.data.gov.uk/id/local-authority/30UE,Unapportionable Central OHeads,1009,Policy & Governance,Cleaning Materials,40019,"Equipment, Furniture & Materia",5023,DCS Green Dishcloths Qty 10 packs @ 1.68 each,07/12/2016,115622,13.80,Revenue,Swiftkleen Ltd,17933
Chorley Borough Council,http://statistics.data.gov.uk/id/local-authority/30UE,Unapportionable Central OHeads,1009,Policy & Governance,Cleaning Materials,40019,"Equipment, Furniture & Materia",5023,39BBL Black bin liners QTY 8 boxes 16.44,07/12/2016,115622,93.60,Revenue,Swiftkleen Ltd,17933
Chorley Borough Council,http://statistics.data.gov.uk/id/local-authority/30UE,Unapportionable Central OHeads,1009,Policy & Governance,Cleaning Materials,40019,"Equipment, Furniture & Materia",5023,SBL White Swing bin liners 20 bags per roll 87p per roll QTY 20,07/12/2016,115622,14.80,Revenue,Swiftkleen Ltd,17933
Chorley Borough Council,http://statistics.data.gov.uk/id/local-authority/30UE,Unapportionable Central OHeads,1009,Policy & Governance,Cleaning Materials,40019,"Equipment, Furniture & Materia",5023,NITPF Nitrile gloves size M 47.12 per case QTY 1 case,07/12/2016,115622,29.50,Revenue,Swiftkleen Ltd,17933
Chorley Borough Council,http://statistics.data.gov.uk/id/local-authority/30UE,Unapportionable Central OHeads,1009,Policy & Governance,Cleaning Materials,40019,"Equipment, Furniture & Materia",5023,EVER Everfresh Evens toilet cleaner apple 5L 5.28 QTY 4,07/12/2016,115622,13.52,Revenue,Swiftkleen Ltd,17933
Chorley Borough Council,http://statistics.data.gov.uk/id/local-authority/30UE,Recreation & Sport,1037,Early Intervention,Miscellaneous Expenses,40200,Miscellaneous Expenses,5034,EPBL Pedal Bin Liners White,02/12/2016,117394,0.96,Revenue,Swiftkleen Ltd,17933
Chorley Borough Council,http://statistics.data.gov.uk/id/local-authority/30UE,Recreation & Sport,1037,Early Intervention,Miscellaneous Expenses,40200,Miscellaneous Expenses,5034,LBBL MED Black Bin Liners X 200,02/12/2016,117394,9.25,Revenue,Swiftkleen Ltd,17933
Chorley Borough Council,http://statistics.data.gov.uk/id/local-authority/30UE,Recreation & Sport,1037,Early Intervention,Miscellaneous Expenses,40200,Miscellaneous Expenses,5034,WUB Washing Brush,02/12/2016,117394,1.20,Revenue,Swiftkleen Ltd,17933
Chorley Borough Council,http://statistics.data.gov.uk/id/local-authority/30UE,Recreation & Sport,1037,Early Intervention,Miscellaneous Expenses,40200,Miscellaneous Expenses,5034,KENBW Bucket & Wringer (Green),02/12/2016,117394,53.88,Revenue,Swiftkleen Ltd,17933
Chorley Borough Council,http://statistics.data.gov.uk/id/local-authority/30UE,Recreation & Sport,1037,Early Intervention,Miscellaneous Expenses,40200,Miscellaneous Expenses,5034,HBH Alu Brush Handle (green),02/12/2016,117394,4.68,Revenue,Swiftkleen Ltd,17933
Chorley Borough Council,http://statistics.data.gov.uk/id/local-authority/30UE,Recreation & Sport,1037,Early Intervention,Miscellaneous Expenses,40200,Miscellaneous Expenses,5034,KMH Kentucky Mop Holder (green),02/12/2016,117394,4.02,Revenue,Swiftkleen Ltd,17933
Chorley Borough Council,http://statistics.data.gov.uk/id/local-authority/30UE,Recreation & Sport,1037,Early Intervention,Miscellaneous Expenses,40200,Miscellaneous Expenses,5034,KEN16 Kentucky Mop heads,02/12/2016,117394,3.36,Revenue,Swiftkleen Ltd,17933
Chorley Borough Council,http://statistics.data.gov.uk/id/local-authority/30UE,Recreation & Sport,1037,Early Intervention,Miscellaneous Expenses,40200,Miscellaneous Expenses,5034,36NC 36`` Med Brush/Stale,02/12/2016,117394,10.59,Revenue,Swiftkleen Ltd,17933
Chorley Borough Council,http://statistics.data.gov.uk/id/local-authority/30UE,Recreation & Sport,1037,Early Intervention,Miscellaneous Expenses,40200,Miscellaneous Expenses,5034,24NC 24`` Brush/Stale,02/12/2016,117394,11.04,Revenue,Swiftkleen Ltd,17933
Chorley Borough Council,http://statistics.data.gov.uk/id/local-authority/30UE,Recreation & Sport,1037,Early Intervention,Miscellaneous Expenses,40200,Miscellaneous Expenses,5034,12NC 12`` Brush/Stale,02/12/2016,117394,2.71,Revenue,Swiftkleen Ltd,17933
Chorley Borough Council,http://statistics.data.gov.uk/id/local-authority/30UE,Recreation & Sport,1037,Early Intervention,Miscellaneous Expenses,40200,Miscellaneous Expenses,5034,9DS 9`` Deck Scrub,02/12/2016,117394,2.25,Revenue,Swiftkleen Ltd,17933
Chorley Borough Council,http://statistics.data.gov.uk/id/local-authority/30UE,Recreation & Sport,1037,Early Intervention,Miscellaneous Expenses,40200,Miscellaneous Expenses,5034,DBUG Octo Edge Cleaner,02/12/2016,117394,7.20,Revenue,Swiftkleen Ltd,17933
Chorley Borough Council,http://statistics.data.gov.uk/id/local-authority/30UE,Recreation & Sport,1037,Early Intervention,Miscellaneous Expenses,40200,Miscellaneous Expenses,5034,DBUGPADB Octo Pads (5),02/12/2016,117394,5.50,Revenue,Swiftkleen Ltd,17933
Chorley Borough Council,http://statistics.data.gov.uk/id/local-authority/30UE,Recreation & Sport,1037,Early Intervention,Miscellaneous Expenses,40200,Miscellaneous Expenses,5034,DPB Dust Pan & Brush (Green),02/12/2016,117394,2.00,Revenue,Swiftkleen Ltd,17933
Chorley Borough Council,http://statistics.data.gov.uk/id/local-authority/30UE,Recreation & Sport,1037,Early Intervention,Miscellaneous Expenses,40200,Miscellaneous Expenses,5034,DPB Dust Pan & Brush (Red),02/12/2016,117394,2.00,Revenue,Swiftkleen Ltd,17933
Chorley Borough Council,http://statistics.data.gov.uk/id/local-authority/30UE,Recreation & Sport,1037,Early Intervention,Miscellaneous Expenses,40200,Miscellaneous Expenses,5034,FLICKEXT Flick Duster,02/12/2016,117394,6.20,Revenue,Swiftkleen Ltd,17933
Chorley Borough Council,http://statistics.data.gov.uk/id/local-authority/30UE,Recreation & Sport,1037,Early Intervention,Miscellaneous Expenses,40200,Miscellaneous Expenses,5034,TBS Toilet Brush/Holder,02/12/2016,117394,6.65,Revenue,Swiftkleen Ltd,17933
Chorley Borough Council,http://statistics.data.gov.uk/id/local-authority/30UE,Recreation & Sport,1037,Early Intervention,Miscellaneous Expenses,40200,Miscellaneous Expenses,5034,FORK Forks,02/12/2016,117394,5.40,Revenue,Swiftkleen Ltd,17933
Chorley Borough Council,http://statistics.data.gov.uk/id/local-authority/30UE,Recreation & Sport,1037,Early Intervention,Miscellaneous Expenses,40200,Miscellaneous Expenses,5034,KNIFE Knives,02/12/2016,117394,7.96,Revenue,Swiftkleen Ltd,17933
Chorley Borough Council,http://statistics.data.gov.uk/id/local-authority/30UE,Recreation & Sport,1037,Early Intervention,Miscellaneous Expenses,40200,Miscellaneous Expenses,5034,SSPOON Soup Spoon,02/12/2016,117394,4.20,Revenue,Swiftkleen Ltd,17933
Chorley Borough Council,http://statistics.data.gov.uk/id/local-authority/30UE,Recreation & Sport,1037,Early Intervention,Miscellaneous Expenses,40200,Miscellaneous Expenses,5034,DSPOON Dessert Spoons,02/12/2016,117394,4.20,Revenue,Swiftkleen Ltd,17933
Chorley Borough Council,http://statistics.data.gov.uk/id/local-authority/30UE,Recreation & Sport,1037,Early Intervention,Miscellaneous Expenses,40200,Miscellaneous Expenses,5034,TEA Tea Spoons,02/12/2016,117394,3.00,Revenue,Swiftkleen Ltd,17933
Chorley Borough Council,http://statistics.data.gov.uk/id/local-authority/30UE,Recreation & Sport,1037,Early Intervention,Miscellaneous Expenses,40200,Miscellaneous Expenses,5034,SCOP Economy Green Scourers,02/12/2016,117394,2.20,Revenue,Swiftkleen Ltd,17933
Chorley Borough Council,http://statistics.data.gov.uk/id/local-authority/30UE,Recreation & Sport,1037,Early Intervention,Miscellaneous Expenses,40200,Miscellaneous Expenses,5034,BSS Sponge Scourer,02/12/2016,117394,3.36,Revenue,Swiftkleen Ltd,17933
Chorley Borough Council,http://statistics.data.gov.uk/id/local-authority/30UE,Recreation & Sport,1037,Early Intervention,Miscellaneous Expenses,40200,Miscellaneous Expenses,5034,MJD Mini Jumbo Dispenser,02/12/2016,117394,52.68,Revenue,Swiftkleen Ltd,17933
Chorley Borough Council,http://statistics.data.gov.uk/id/local-authority/30UE,Recreation & Sport,1037,Early Intervention,Miscellaneous Expenses,40200,Miscellaneous Expenses,5034,05SSMJ Mini Jumbo Toilet Roll (12),02/12/2016,117394,13.30,Revenue,Swiftkleen Ltd,17933
Chorley Borough Council,http://statistics.data.gov.uk/id/local-authority/30UE,Recreation & Sport,1037,Early Intervention,Miscellaneous Expenses,40200,Miscellaneous Expenses,5034,CFD Centrefeed Dispenser,02/12/2016,117394,23.26,Revenue,Swiftkleen Ltd,17933
Chorley Borough Council,http://statistics.data.gov.uk/id/local-authority/30UE,Recreation & Sport,1037,Early Intervention,Miscellaneous Expenses,40200,Miscellaneous Expenses,5034,UB3752 Blue Centrefeed Rolls (6),02/12/2016,117394,14.40,Revenue,Swiftkleen Ltd,17933
Chorley Borough Council,http://statistics.data.gov.uk/id/local-authority/30UE,Recreation & Sport,1037,Early Intervention,Miscellaneous Expenses,40200,Miscellaneous Expenses,5034,FAKM First Aid Kit Medium,02/12/2016,117394,38.80,Revenue,Swiftkleen Ltd,17933
Chorley Borough Council,http://statistics.data.gov.uk/id/local-authority/30UE,Capital,Capital,Early Intervention,Main Contractor,3007,Capital Expenditure,Capital,Capital Works - all upgrade of equipment and control room,07/12/2016,117468,"9,191.85",Capital,Technology Solutions,72376
Chorley Borough Council,http://statistics.data.gov.uk/id/local-authority/30UE,Capital,Capital,Early Intervention,Main Contractor,3007,Capital Expenditure,Capital,Capital Works - all upgrade of equipment and control room,21/12/2016,117722,"34,504.80",Capital,Technology Solutions,72376
Chorley Borough Council,http://statistics.data.gov.uk/id/local-authority/30UE,Central Support Services,1009,Early Intervention,Professional Fees,40063,Services,5027,Renewal Membership of CCTV,09/12/2016,117458,275.00,Revenue,The CCTV User Group,68077
Chorley Borough Council,http://statistics.data.gov.uk/id/local-authority/30UE,Corporate Management,1008,Policy & Governance,Rent/Hire Of Premises,20017,Premises Rents,5007,To deliver the Public Service Reform primary care project,21/12/2016,117917,"42,000.00",Revenue,The Chorley Surgery,76420
Chorley Borough Council,http://statistics.data.gov.uk/id/local-authority/30UE,Corporate Management,1008,Policy & Governance,Exhibitions & Special Events,40158,Miscellaneous Expenses,5034,Christmas arts and crafts for children in Market Walk on Saturdays 10 and 17 December.,21/12/2016,117665,380.00,Revenue,The Creation Station Merseyside,71522
Chorley Borough Council,http://statistics.data.gov.uk/id/local-authority/30UE,Tourism,1039,Policy & Governance,Promotional Expenses,40159,Miscellaneous Expenses,5034,Strolling gardeners entertainment for the Chorley Flower Show,14/12/2016,117669,"1,295.00",Revenue,The Fairly Famous Family Limited,20457
Chorley Borough Council,http://statistics.data.gov.uk/id/local-authority/30UE,Central Support Services,1009,Early Intervention,Miscellaneous Expenses,40200,Miscellaneous Expenses,5034,Ticket Media - Domestic Abuse Bus Tickets,02/12/2016,117271,587.50,Revenue,Ticketmedia LTD,76367
Chorley Borough Council,http://statistics.data.gov.uk/id/local-authority/30UE,Service Management & Support,1009,Customer & Digital,Petrol,30005,Direct Transport Costs,5016,Nov-16,20/12/2016,117397,291.86,Revenue,Uk Fuels Ltd,57996
Chorley Borough Council,http://statistics.data.gov.uk/id/local-authority/30UE,Unapportionable Central OHeads,1009,Policy & Governance,Miscellaneous Expenses,40200,Miscellaneous Expenses,5034,levels 1-5,15/12/2016,117762,"1,463.54",Revenue,UK Healthcare (BDHSC),17241
Chorley Borough Council,http://statistics.data.gov.uk/id/local-authority/30UE,Control Accounts,Control,Policy & Governance,General Balances,100,Balance Sheet,Balance,top ups,15/12/2016,117762,647.45,Revenue,UK Healthcare (BDHSC),17241
Chorley Borough Council,http://statistics.data.gov.uk/id/local-authority/30UE,Unapportionable Central OHeads,1009,Policy & Governance,Miscellaneous Expenses,40200,Miscellaneous Expenses,5034,levels 1-5,15/12/2016,117763,"1,485.19",Revenue,UK Healthcare (BDHSC),17241
Chorley Borough Council,http://statistics.data.gov.uk/id/local-authority/30UE,Control Accounts,Control,Policy & Governance,General Balances,100,Balance Sheet,Balance,top ups,15/12/2016,117763,643.12,Revenue,UK Healthcare (BDHSC),17241
Chorley Borough Council,http://statistics.data.gov.uk/id/local-authority/30UE,Corporate Management,1008,Policy & Governance,Exhibitions & Special Events,40158,Miscellaneous Expenses,5034,credited,09/12/2016,117410,350.00,Revenue,UK Media and Events Limited,71221
Chorley Borough Council,http://statistics.data.gov.uk/id/local-authority/30UE,Unapportionable Central OHeads,1009,Policy & Governance,Exhibitions & Special Events,40158,Miscellaneous Expenses,5034,"Christmas face painting at Astley for Saturdays and Sundays 3,4,10,11,17 and 18 December 2016",14/12/2016,117734,350.00,Revenue,UK Media and Events Limited,71221
Chorley Borough Council,http://statistics.data.gov.uk/id/local-authority/30UE,Unapportionable Central OHeads,1009,Policy & Governance,Exhibitions & Special Events,40158,Miscellaneous Expenses,5034,"Christmas face painting at Astley for Saturdays and Sundays 3,4,10,11,17 and 18 December 2016",21/12/2016,117859,350.00,Revenue,UK Media and Events Limited,71221
Chorley Borough Council,http://statistics.data.gov.uk/id/local-authority/30UE,Unapportionable Central OHeads,1009,Customer & Digital,Postages,40082,Communication and Computing,5028,Imail Eco Business mono Letters - Hybrid,14/12/2016,117721,772.75,Revenue,UKMAIL Ltd (Mail),57758
Chorley Borough Council,http://statistics.data.gov.uk/id/local-authority/30UE,Unapportionable Central OHeads,1009,Customer & Digital,Postages,40082,Communication and Computing,5028,Imail Eco Business mono Letters - Hybrid,14/12/2016,117729,965.21,Revenue,UKMAIL Ltd (Mail),57758
Chorley Borough Council,http://statistics.data.gov.uk/id/local-authority/30UE,Unapportionable Central OHeads,1009,Customer & Digital,Postages,40082,Communication and Computing,5028,Imail Eco Business mono Letters - Hybrid,14/12/2016,117733,762.70,Revenue,UKMAIL Ltd (Mail),57758
Chorley Borough Council,http://statistics.data.gov.uk/id/local-authority/30UE,Business Support,1095,Business Development & Growth,Miscellaneous Expenses,40200,Miscellaneous Expenses,5034,For delinquent business loans - Unify Credit Union,02/12/2016,117385,500.00,Revenue,Unify Credit Union Ltd,55509
Chorley Borough Council,http://statistics.data.gov.uk/id/local-authority/30UE,Control Accounts,Control,Policy & Governance,General Balances,100,Balance Sheet,Balance,sal ded,21/12/2016,117877,"1,637.40",Revenue,Unify Credit Union Ltd,55509
Chorley Borough Council,http://statistics.data.gov.uk/id/local-authority/30UE,Central Support Services,1009,Business Development & Growth,Water - Unmetered Supply,20023,Water Services,5009,Eaves lane,07/12/2016,116679,853.25,Revenue,United Utilities Water Plc,17926
Chorley Borough Council,http://statistics.data.gov.uk/id/local-authority/30UE,Corporate Management,1008,Business Development & Growth,Water - Metered Supplies,20022,Water Services,5009,toilets,07/12/2016,116802,"2,080.50",Revenue,United Utilities Water Plc,17926
Chorley Borough Council,http://statistics.data.gov.uk/id/local-authority/30UE,Unapportionable Central OHeads,1009,Business Development & Growth,Water - Metered Supplies,20022,Water Services,5009,byron street,07/12/2016,116804,947.01,Revenue,United Utilities Water Plc,17926
Chorley Borough Council,http://statistics.data.gov.uk/id/local-authority/30UE,Democratic Represent and  Mgnt,1007,Business Development & Growth,Water - Metered Supplies,20022,Water Services,5009,eaves green cc,21/12/2016,117816,297.74,Revenue,United Utilities Water Plc,17926
Chorley Borough Council,http://statistics.data.gov.uk/id/local-authority/30UE,Capital,Capital,Early Intervention,Grants,3002,Capital Expenditure,Capital,ADDRESS REDACTED,09/12/2016,117604,"3,384.00",Capital,UPS Building and Maintenance Ltd,76235
Chorley Borough Council,http://statistics.data.gov.uk/id/local-authority/30UE,Planning Policy,1092,Business Development & Growth,Professional Fees,40063,Services,5027,NAME REDACTED providing planning work to Planning Policy for 29 days @7.5hours per day (2 days per week until 28 Feb 2017,07/12/2016,117503,"2,294.43",Revenue,Urban Vision Partnership Ltd,21181
Chorley Borough Council,http://statistics.data.gov.uk/id/local-authority/30UE,Development Control,1091,Customer & Digital,Professional Fees,40063,Services,5027,planning support,21/12/2016,117689,"5,881.25",Revenue,Urban Vision Partnership Ltd,21181
Chorley Borough Council,http://statistics.data.gov.uk/id/local-authority/30UE,Central Support Services,1009,Early Intervention,Car Leasing Payment,14100,Direct Employee Expenses,5001,4325083 Driver: NAME REDACTED Audi A3 1.6 TDI SE Technik 5dr Hatchback  Colour: White Diesel and manual Mileage,02/12/2016,117351,"2,240.63",Revenue,VWFS UK Ltd T/A Volkswagen Group Leasing,56010
Chorley Borough Council,http://statistics.data.gov.uk/id/local-authority/30UE,Central Support Services,1009,Early Intervention,Car Leasing Payment,14100,Direct Employee Expenses,5001,Car Lease,02/12/2016,117351,191.14,Revenue,VWFS UK Ltd T/A Volkswagen Group Leasing,56010
Chorley Borough Council,http://statistics.data.gov.uk/id/local-authority/30UE,Control Accounts,Control,Early Intervention,Manual Control Account,1,Balance Sheet,Balance,Balance Sheet,02/12/2016,117351,-191.14,Revenue,VWFS UK Ltd T/A Volkswagen Group Leasing,56010
Chorley Borough Council,http://statistics.data.gov.uk/id/local-authority/30UE,Service Management & Support,1009,Customer & Digital,Supplies-Grounds Maintenance,40025,"Equipment, Furniture & Materia",5023,"3500  Filled Sandbags Size: 34x75cm Tubular Woven PP sack, colour black heavy duty 66 Sandbags per Pallet � Price Per Bag",15/12/2016,117678,"2,333.76",Revenue,Weir & Carmichael Ltd,76400
Chorley Borough Council,http://statistics.data.gov.uk/id/local-authority/30UE,Service Management & Support,1009,Customer & Digital,Supplies-Grounds Maintenance,40025,"Equipment, Furniture & Materia",5023,"3500  Filled Sandbags Size: 34x75cm Tubular Woven PP sack, colour black heavy duty 66 Sandbags per Pallet � Price Per Bag",15/12/2016,117770,"2,154.24",Revenue,Weir & Carmichael Ltd,76400
Chorley Borough Council,http://statistics.data.gov.uk/id/local-authority/30UE,Capital,Capital,Business Development & Growth,Main Contractor,3007,Capital Expenditure,Capital,King George V playing field Adlington - deep bore hole investigation,09/12/2016,117639,"2,000.00",Capital,Westlakes Engineering Ltd,74337
Chorley Borough Council,http://statistics.data.gov.uk/id/local-authority/30UE,Service Management & Support,1009,Customer & Digital,Supplies-Grounds Maintenance,40025,"Equipment, Furniture & Materia",5023,"Please supply 20 x litterbins to Chorley Council specification, as per Quote Number 39700 dated 18/11/16.",22/12/2016,117937,"3,800.00",Revenue,Wybone Ltd,18097
Chorley Borough Council,http://statistics.data.gov.uk/id/local-authority/30UE,Service Management & Support,1009,Customer & Digital,Protective Clothing,40040,"Clothing, Uniforms and Laundry",5025,Rodo Guardian Hi Leg safety working boot.  Size = 8.  Product Code = ROD667,02/12/2016,117370,149.00,Revenue,Yeshili Reflective Material Co Ltd T/A VIZWEAR,76338
Chorley Borough Council,http://statistics.data.gov.uk/id/local-authority/30UE,Service Management & Support,1009,Customer & Digital,Protective Clothing,40040,"Clothing, Uniforms and Laundry",5025,Rodo Guardian Hi Leg safety working boot.  Size = 9.  Product Code = ROD667,02/12/2016,117370,149.00,Revenue,Yeshili Reflective Material Co Ltd T/A VIZWEAR,76338
Chorley Borough Council,http://statistics.data.gov.uk/id/local-authority/30UE,Recreation & Sport,1037,Early Intervention,Miscellaneous Expenses,40200,Miscellaneous Expenses,5034,D17153 Double Door Lockable Cupboard (metal),07/12/2016,117425,325.20,Revenue,Yorkshire Purchasing Org,18098
Chorley Borough Council,http://statistics.data.gov.uk/id/local-authority/30UE,Recreation & Sport,1037,Early Intervention,Miscellaneous Expenses,40200,Miscellaneous Expenses,5034,D17315 Metal Shelves for Lockable Cupboard,07/12/2016,117425,69.00,Revenue,Yorkshire Purchasing Org,18098
Chorley Borough Council,http://statistics.data.gov.uk/id/local-authority/30UE,Recreation & Sport,1037,Early Intervention,Miscellaneous Expenses,40200,Miscellaneous Expenses,5034,D16130 - Premier Folding Tables - 915(L) x 760mm(W) - height 698mm(H)-Adult.  Japanese Beech (GP58),23/12/2016,117832,557.60,Revenue,Yorkshire Purchasing Org,18098
Chorley Borough Council,http://statistics.data.gov.uk/id/local-authority/30UE,Recreation & Sport,1037,Early Intervention,Miscellaneous Expenses,40200,Miscellaneous Expenses,5034,Obling Folding Tables - 1830(L) x 760mm(W).  Height:698mm(H) - Adult.  Japanese Beech (GP58),23/12/2016,117832,789.20,Revenue,Yorkshire Purchasing Org,18098
Chorley Borough Council,http://statistics.data.gov.uk/id/local-authority/30UE,Recreation & Sport,1037,Early Intervention,Miscellaneous Expenses,40200,Miscellaneous Expenses,5034,D22045 Chair Transportation Trolley (hold 20 chairs each),23/12/2016,117832,508.30,Revenue,Yorkshire Purchasing Org,18098
Chorley Borough Council,http://statistics.data.gov.uk/id/local-authority/30UE,Recreation & Sport,1037,Early Intervention,Miscellaneous Expenses,40200,Miscellaneous Expenses,5034,D22048 Fast Fold,23/12/2016,117832,23.00,Revenue,Yorkshire Purchasing Org,18098
Chorley Borough Council,http://statistics.data.gov.uk/id/local-authority/30UE,Recreation & Sport,1037,Early Intervention,Miscellaneous Expenses,40200,Miscellaneous Expenses,5034,D17153 Double Door Lockable Cupboads (metal) Lockable,23/12/2016,117832,487.80,Revenue,Yorkshire Purchasing Org,18098
Chorley Borough Council,http://statistics.data.gov.uk/id/local-authority/30UE,Recreation & Sport,1037,Early Intervention,Miscellaneous Expenses,40200,Miscellaneous Expenses,5034,D17315 Metal Shelves for Cupboard,23/12/2016,117832,103.50,Revenue,Yorkshire Purchasing Org,18098
Chorley Borough Council,http://statistics.data.gov.uk/id/local-authority/30UE,Corporate Management,1008,Chief Executive,Employee Related Insurance,18003,Indirect Employee Expenses,5002,insurance addition,21/12/2016,117700,320.50,Revenue,Zurich Insurance Company,16236
